Workbook

Sheet CU
A1: champs nommés | F1: Immatriculations | G1: Charge utile en t | I1: Conducteur | K1: lieux
A2: fonction | B2: feuille | C2: champ | D2: nom
A3: champ des charges maxi | B3: CU | C3: F3:G52 | D3: charg | F3: AA | G3: 6.9 | I3: Sian | K3: plusieurs communes
A4: liste des immatriculations | B4: CU | C4: F2:F53 | D4: immat | F4: BB | G4: 7.1 | I4: Loic | K4: Firminy
A5: liste des conducteurs | B5: CU | C5: I2:I53 | D5: condu | F5: CC | G5: 7.1 | I5: Marc | K5: Fraisses
A6: liste des lieux (?) | B6: CU | C6: H2:H53 | D6: lieux | F6: DD | G6: 6.3 | I6: Marcel | K6: La Ricamarie
A7: conducteurs | B7: liste données | C7: H2:H2000 | D7: liste_C | F7: EE | G7: 6.3 | I7: Paul | K7: Unieux
A8: jours | B8: liste données | C8: D2:D20000 | D8: liste_J | F8: FF | G8: 3.1 | K8: Caloire/St Paul
A9: tonnage 1 | B9: liste données | C9: G2/Q20000 | D9: T_1 | F9: GG | G9: 6 | K9: Caloire
A10: tonnage 2 | B10: liste données | C10: R2:R20000 | D10: T_2 | F10: HH | G10: 6 | K10: St Paul
A11: tonnage 3 | B11: liste données | C11: S2:S20000 | D11: T_3 | F11: II | G11: 6.84
A12: tonnage 4 | B12: liste données | C12: T2:T20000 | D12: T_4 | F12: JJ | G12: 6
A13: tonnage maxi | B13: liste données | C13: Y2:Y20000 | D13: T_max | F13: KK | G13: 6.8
A14: codage surcharge | B14: liste données | C14: Z2:Z20000 | D14: code | F14: LL | G14: 6.6
A15: date | B15: liste données | C15: C2:C20000 | D15: date | F15: MM | G15: 6.2
I53: _

Sheet liste données
B1: Mois | C1: Date | D1: Jour | E1: N° semaine | F1: Flux | G1: Immatriculation | H1: Conducteur | I1: Collecteur 1 | J1: Collecteur 2 | K1: km départ | L1: km arrivée | M1: km circuit | N1: H départ | O1: H retour | P1: Temps collecte (h) | Q1: Tonnage pour dépotage1 (t) | R1: Tonnage pour dépotage2 (t) | S1: Tonnage pour dépotage3 (t) | T1: Tonnage pour dépotage4 (t) | U1: Total tonnage(t) | V1: Nbre de dépotage | W1: Tonnage moyen (t) | X1: Fréquence de la collecte | Y1: panne | AA1: charge maxi | AB1: code surcharge
B2: janvier | C2: 2015-01-01 | D2: =IF(C2="","",LEFT(TEXT(C2,"jjjjjj"),3)) -> jeu | E2: 1 | F2: O.M | G2: AA | H2: Sian | I2: Sylvain | J2: Philippe | K2: 37024 | L2: 37062 | M2: =L2-K2 -> 38 | N2: 05:00:00 | O2: 08:15:00 | P2: =(O2-N2) -> 03:15:00 | Q2: 4.35 | U2: =SUM(Q2:T2) -> 4.35 | V2: =COUNTA(Q2:T2) -> 1 | W2: =IF(V2=0,"",U2/V2) -> 4.35 | AA2: =IFERROR(VLOOKUP(G2,charg,2,0),"") -> 6.9 | AB2: =IF($Q2>$AA2,"A","")&IF($R2>$AA2,"B","")&IF($S2>$AA2,"C","")&IF($T2>$AA2,"D","") -> 
B3: janvier | C3: 2015-01-01 | D3: =IF(C3="","",LEFT(TEXT(C3,"jjjjjj"),3)) -> jeu | E3: 1 | F3: O.M | G3: BB | H3: Loic | I3: Marek | J3: Bernard | K3: 56932 | L3: 56969 | M3: 37 | N3: 05:00:00 | O3: 08:45:00 | P3: 03:45:00 | Q3: 5.4 | U3: =SUM(Q3:T3) -> 5.4 | V3: =COUNTA(Q3:T3) -> 1 | W3: =IF(V3=0,"",U3/V3) -> 5.4 | AA3: 7.1 | AB3: =IF($Q3>$AA3,"A","")&IF($R3>$AA3,"B","")&IF($S3>$AA3,"C","")&IF($T3>$AA3,"D","") -> 
B4: janvier | C4: 2015-01-01 | D4: =IF(C4="","",LEFT(TEXT(C4,"jjjjjj"),3)) -> jeu | E4: 1 | F4: O.M | G4: CC | H4: Marc | I4: Régis | J4: Jean | K4: 31509 | L4: 31559 | M4: 50 | N4: 05:00:00 | O4: 08:15:00 | P4: 03:15:00 | Q4: 1.75 | U4: 1.75 | V4: 1 | W4: 1.75 | AA4: 7.1
B5: janvier | C5: 2015-01-01 | D5: jeu | E5: 1 | F5: O.M | G5: DD | H5: Marcel | I5: Alban | J5: Jules | K5: 70453 | L5: 70489 | M5: 36 | N5: 05:00:00 | O5: 08:30:00 | P5: 03:30:00 | Q5: 3.05 | U5: 3.05 | V5: 1 | W5: 3.05 | AA5: 6.3
B6: janvier | C6: 2015-01-01 | D6: jeu | E6: 1 | F6: O.M | G6: EE | H6: Paul | I6: Simon | J6: Morad | K6: 21809 | L6: 21852 | M6: 43 | N6: 05:00:00 | O6: 09:00:00 | P6: 04:00:00 | Q6: 6.78 | U6: 6.78 | V6: 1 | W6: 6.78 | AA6: 6.3 | AB6: A
B7: janvier | C7: 2015-01-01 | D7: jeu | E7: 1 | F7: Multimatériaux | G7: FF | H7: Sian | I7: Sylvain | J7: Philippe | K7: 75887 | L7: 75917 | M7: 30 | N7: 05:00:00 | O7: 09:15:00 | P7: 04:15:00 | Q7: 3.62 | U7: 3.62 | V7: 1 | W7: 3.62 | AA7: 3.1 | AB7: A
B8: janvier | C8: 2015-01-01 | D8: jeu | E8: 1 | F8: Multimatériaux | G8: GG | H8: Loic | I8: Marek | J8: Bernard | K8: 73579 | L8: 73593 | M8: 14 | N8: 08:00:00 | O8: 09:00:00 | P8: 01:00:00 | Q8: 0.5 | U8: 0.5 | V8: 1 | W8: 0.5 | AA8: 6
B9: janvier | C9: 2015-01-02 | D9: ven | E9: 1 | F9: O.M | G9: HH | H9: Marc | I9: Régis | J9: Jean | K9: 37062 | L9: 37099 | M9: 37 | N9: 05:00:00 | O9: 08:45:00 | P9: 03:45:00 | Q9: 6.15 | R9: 2.85 | U9: 9 | V9: 2 | W9: 4.5 | AA9: 6 | AB9: A
B10: janvier | C10: 2015-01-02 | D10: ven | E10: 1 | F10: O.M | G10: II | H10: Marcel | I10: Alban | J10: Jules | K10: 56969 | L10: 57008 | M10: 39 | N10: 05:00:00 | O10: 10:00:00 | P10: 05:00:00 | Q10: 6.85 | U10: 6.85 | V10: 1 | W10: 6.85 | AA10: 6.84 | AB10: A
B11: janvier | C11: 2015-01-02 | D11: ven | E11: 1 | F11: O.M | G11: JJ | H11: Paul | I11: Simon | J11: Morad | K11: 70489 | L11: 70533 | M11: 44 | N11: 05:00:00 | O11: 09:00:00 | P11: 04:00:00 | Q11: 4.95 | U11: 4.95 | V11: 1 | W11: 4.95 | AA11: 6
B12: janvier | C12: 2015-01-02 | D12: ven | E12: 1 | F12: O.M | G12: KK | H12: Sian | I12: Sylvain | J12: Philippe | K12: 21852 | L12: 21911 | M12: 59 | N12: 05:00:00 | O12: 10:15:00 | P12: 05:15:00 | Q12: 6.7 | R12: 0.62 | U12: 7.32 | V12: 2 | W12: 3.66 | AA12: 6.8
B13: janvier | C13: 2015-01-02 | D13: ven | E13: 1 | F13: O.M | G13: LL | H13: Loic | I13: Marek | J13: Bernard | K13: 26805 | L13: 26845 | M13: 40 | N13: 05:00:00 | O13: 09:45:00 | P13: 04:45:00 | Q13: 7.15 | R13: 1.95 | U13: 9.1 | V13: 2 | W13: 4.55 | AA13: 6.6 | AB13: A
B14: janvier | C14: 2015-01-02 | D14: ven | E14: 1 | F14: O.M | G14: MM | H14: Marc | I14: Régis | J14: Jean | K14: 76597 | L14: 76654 | M14: 57 | N14: 05:00:00 | O14: 09:30:00 | P14: 04:30:00 | Q14: 6.4 | U14: 6.4 | V14: 1 | W14: 6.4 | AA14: 6.2 | AB14: A
B15: janvier | C15: 2015-01-05 | D15: lun | E15: 2 | F15: O.M | G15: AA | H15: Marcel | I15: Alban | J15: Jules | K15: 37099 | L15: 37149 | M15: 50 | N15: 05:00:00 | O15: 10:30:00 | P15: 05:30:00 | Q15: 6.45 | R15: 5.7 | U15: 12.15 | V15: 2 | W15: 6.075 | AA15: 6.9
B16: janvier | C16: 2015-01-05 | D16: lun | E16: 2 | F16: O.M | G16: BB | H16: Paul | I16: Simon | J16: Morad | K16: 57008 | L16: 57071 | M16: 63 | N16: 05:00:00 | O16: 10:30:00 | P16: 05:30:00 | Q16: 5.54 | R16: 4.85 | S16: 4.55 | U16: 14.94 | V16: 3 | W16: 4.98 | AA16: 7.1
B17: janvier | C17: 2015-01-05 | D17: lun | E17: 2 | F17: O.M | G17: CC | H17: Sian | I17: Sylvain | J17: Philippe | K17: 31559 | L17: 31637 | M17: 78 | N17: 05:00:00 | O17: 11:15:00 | P17: 06:15:00 | Q17: 5.55 | R17: 3.25 | U17: 8.8 | V17: 2 | W17: 4.4 | AA17: 7.1
B18: janvier | C18: 2015-01-05 | D18: lun | E18: 2 | F18: O.M | G18: DD | H18: Loic | I18: Marek | J18: Bernard | K18: 70533 | L18: 70585 | M18: 52 | N18: 05:00:00 | O18: 10:15:00 | P18: 05:15:00 | Q18: 6.9 | R18: 3.1 | U18: 10 | V18: 2 | W18: 5 | AA18: 6.3 | AB18: A
B19: janvier | C19: 2015-01-05 | D19: lun | E19: 2 | F19: O.M | G19: EE | H19: Marc | I19: Régis | J19: Jean | K19: 21911 | L19: 21969 | M19: 58 | N19: 05:00:00 | O19: 11:30:00 | P19: 06:30:00 | Q19: 7.16 | R19: 6.32 | S19: 0.94 | U19: 14.42 | V19: 3 | W19: 4.806666667 | AA19: 6.3 | AB19: AB
B20: janvier | C20: 2015-01-05 | D20: lun | E20: 2 | F20: O.M | G20: FF | H20: Marcel | I20: Alban | J20: Jules | K20: 26845 | L20: 26912 | M20: 67 | N20: 05:00:00 | O20: 10:00:00 | P20: 05:00:00 | Q20: 6.55 | R20: 4.6 | U20: 11.15 | V20: 2 | W20: 5.575 | AA20: 3.1 | AB20: AB
B21: janvier | C21: 2015-01-06 | D21: mar | E21: 2 | F21: O.M | G21: GG | H21: Paul | I21: Simon | J21: Morad | K21: 37149 | L21: 37210 | M21: 61 | N21: 05:00:00 | O21: 10:50:00 | P21: 05:50:00 | Q21: 6.58 | R21: 7.9 | S21: 0.36 | U21: 14.84 | V21: 3 | W21: 4.946666667 | AA21: 6 | AB21: AB
B22: janvier | C22: 2015-01-06 | D22: mar | E22: 2 | F22: O.M | G22: HH | H22: Sian | I22: Sylvain | J22: Philippe | K22: 57071 | L22: 57120 | M22: 49 | N22: 05:00:00 | O22: 10:30:00 | P22: 05:30:00 | Q22: 6.4 | R22: 5.68 | U22: 12.08 | V22: 2 | W22: 6.04 | AA22: 6 | AB22: A
B23: janvier | C23: 2015-01-06 | D23: mar | E23: 2 | F23: Multimatériaux | G23: II | H23: Loic | I23: Marek | J23: Bernard | K23: 31637 | L23: 31676 | M23: 39 | N23: 05:00:00 | O23: 10:10:00 | P23: 05:10:00 | Q23: 2.7 | U23: 2.7 | V23: 1 | W23: 2.7 | AA23: 6.84
B24: janvier | C24: 2015-01-06 | D24: mar | E24: 2 | F24: Marchés | G24: JJ | H24: Marc | I24: Régis | J24: Jean | K24: 73593 | L24: 73619 | M24: 26 | N24: 12:00:00 | O24: 14:00:00 | P24: 02:00:00 | Q24: 0.61 | U24: 0.61 | V24: 1 | W24: 0.61 | AA24: 6
B25: janvier | C25: 2015-01-06 | D25: mar | E25: 2 | F25: O.M | G25: KK | H25: Marcel | I25: Alban | J25: Jules | K25: 70585 | L25: 70642 | M25: 57 | N25: 05:00:00 | O25: 10:41:00 | P25: 05:41:00 | Q25: 6.8 | R25: 2.56 | U25: 9.36 | V25: 2 | W25: 4.68 | AA25: 6.8
B26: janvier | C26: 2015-01-06 | D26: mar | E26: 2 | F26: O.M | G26: LL | H26: Paul | I26: Simon | J26: Morad | K26: 21969 | L26: 22034 | M26: 65 | N26: 05:00:00 | O26: 11:00:00 | P26: 06:00:00 | Q26: 6.66 | R26: 4.86 | U26: 11.52 | V26: 2 | W26: 5.76 | AA26: 6.6 | AB26: A
B27: janvier | C27: 2015-01-06 | D27: mar | E27: 2 | F27: O.M | G27: MM | H27: Sian | I27: Sylvain | J27: Philippe | K27: 26912 | L27: 26973 | M27: 61 | N27: 05:00:00 | O27: 10:45:00 | P27: 05:45:00 | Q27: 5.12 | R27: 4 | U27: 9.12 | V27: 2 | W27: 4.56 | AA27: 6.2
B28: janvier | C28: 2015-01-07 | D28: mer | E28: 2 | F28: Multimatériaux | G28: AA | H28: Loic | I28: Marek | J28: Bernard | K28: 37210 | L28: 37247 | M28: 37 | N28: 05:00:00 | O28: 10:20:00 | P28: 05:20:00 | Q28: 4.68 | R28: 3.34 | U28: 8.02 | V28: 2 | W28: 4.01 | AA28: 6.9
B29: janvier | C29: 2015-01-07 | D29: mer | E29: 2 | F29: Multimatériaux | G29: BB | H29: Marc | I29: Régis | J29: Jean | K29: 57120 | L29: 57161 | M29: 41 | N29: 05:00:00 | O29: 10:30:00 | P29: 05:30:00 | Q29: 4.26 | U29: 4.26 | V29: 1 | W29: 4.26 | AA29: 7.1
B30: janvier | C30: 2015-01-07 | D30: mer | E30: 2 | F30: Cartons | G30: CC | H30: Marcel | I30: Alban | J30: Jules | K30: 31676 | L30: 31723 | M30: 47 | N30: 05:00:00 | O30: 08:20:00 | P30: 03:20:00 | Q30: 1.93 | U30: 1.93 | V30: 1 | W30: 1.93 | AA30: 7.1
B31: janvier | C31: 2015-01-07 | D31: mer | E31: 2 | F31: O.M | G31: DD | H31: Paul | I31: Simon | J31: Morad | K31: 31676 | L31: 31723 | M31: 47 | N31: 08:20:00 | O31: 10:15:00 | P31: 01:55:00 | Q31: 1.7 | U31: 1.7 | V31: 1 | W31: 1.7 | AA31: 6.3
B32: janvier | C32: 2015-01-07 | D32: mer | E32: 2 | F32: Marchés | G32: EE | H32: Sian | I32: Sylvain | J32: Philippe | K32: 73619 | L32: 73639 | M32: 20 | N32: 12:00:00 | O32: 14:00:00 | P32: 02:00:00 | Q32: 0.9 | U32: 0.9 | V32: 1 | W32: 0.9 | AA32: 6.3
B33: janvier | C33: 2015-01-07 | D33: mer | E33: 2 | F33: Multimatériaux | G33: FF | H33: Loic | I33: Marek | J33: Bernard | K33: 22034 | L33: 22104 | M33: 70 | N33: 05:00:00 | O33: 12:30:00 | P33: 07:30:00 | Q33: 3.9 | R33: 1.56 | U33: 5.46 | V33: 2 | W33: 2.73 | AA33: 3.1 | AB33: A
B34: janvier | C34: 2015-01-07 | D34: mer | E34: 2 | F34: Multimatériaux | G34: GG | H34: Marc | I34: Régis | J34: Jean | K34: 26973 | L34: 27004 | M34: 31 | N34: 05:00:00 | O34: 10:00:00 | P34: 05:00:00 | Q34: 4.83 | U34: 4.83 | V34: 1 | W34: 4.83 | AA34: 6
B35: janvier | C35: 2015-01-07 | D35: mer | E35: 2 | F35: Multimatériaux | G35: HH | H35: Marcel | I35: Alban | J35: Jules | K35: 76663 | L35: 76683 | M35: 20 | N35: 06:00:00 | O35: 08:50:00 | P35: 02:50:00 | Q35: 0.72 | U35: 0.72 | V35: 1 | W35: 0.72 | AA35: 6
B36: janvier | C36: 2015-01-07 | D36: mer | E36: 2 | G36: II | H36: Paul | I36: Simon | J36: Morad | K36: 67280 | L36: 67284 | M36: 4 | N36: 08:15:00 | O36: 09:00:00 | P36: 00:45:00 | U36: 0 | V36: 0 | AA36: 6.84
B37: janvier | C37: 2015-01-08 | D37: jeu | E37: 2 | F37: O.M | G37: JJ | H37: Sian | I37: Sylvain | J37: Philippe | K37: 37247 | L37: 37286 | M37: 39 | N37: 05:00:00 | O37: 09:10:00 | P37: 04:10:00 | Q37: 5.45 | U37: 5.45 | V37: 1 | W37: 5.45 | AA37: 6
B38: janvier | C38: 2015-01-08 | D38: jeu | E38: 2 | F38: O.M | G38: KK | H38: Loic | I38: Marek | J38: Bernard | K38: 57161 | L38: 57195 | M38: 34 | N38: 05:00:00 | O38: 09:00:00 | P38: 04:00:00 | Q38: 6.05 | R38: 1.9 | U38: 7.95 | V38: 2 | W38: 3.975 | AA38: 6.8
B39: janvier | C39: 2015-01-08 | D39: jeu | E39: 2 | F39: O.M | G39: LL | H39: Marc | I39: Régis | J39: Jean | K39: 31723 | L39: 31784 | M39: 61 | N39: 05:00:00 | O39: 10:25:00 | P39: 05:25:00 | Q39: 3.65 | U39: 3.65 | V39: 1 | W39: 3.65 | AA39: 6.6
B40: janvier | C40: 2015-01-08 | D40: jeu | E40: 2 | F40: Marchés | G40: MM | H40: Marcel | I40: Alban | J40: Jules | K40: 73639 | L40: 73649 | M40: 10 | N40: 12:00:00 | O40: 14:00:00 | P40: 02:00:00 | Q40: 0.26 | U40: 0.26 | V40: 1 | W40: 0.26 | AA40: 6.2
B41: janvier | C41: 2015-01-08 | D41: jeu | E41: 2 | F41: O.M | G41: AA | H41: Paul | I41: Simon | J41: Morad | K41: 70642 | L41: 70680 | M41: 38 | N41: 05:00:00 | O41: 09:40:00 | P41: 04:40:00 | Q41: 4.25 | U41: 4.25 | V41: 1 | W41: 4.25 | AA41: 6.9
B42: janvier | C42: 2015-01-08 | D42: jeu | E42: 2 | F42: O.M | G42: BB | H42: Sian | I42: Sylvain | J42: Philippe | K42: 22104 | L42: 22157 | M42: 53 | N42: 05:00:00 | O42: 09:30:00 | P42: 04:30:00 | Q42: 6.2 | R42: 2.02 | U42: 8.22 | V42: 2 | W42: 4.11 | AA42: 7.1
B43: janvier | C43: 2015-01-08 | D43: jeu | E43: 2 | F43: Multimatériaux | G43: CC | H43: Loic | I43: Marek | J43: Bernard | K43: 27004 | L43: 27049 | M43: 45 | N43: 05:00:00 | O43: 09:50:00 | P43: 04:50:00 | Q43: 4.63 | U43: 4.63 | V43: 1 | W43: 4.63 | AA43: 7.1
B44: janvier | C44: 2015-01-08 | D44: jeu | E44: 2 | F44: O.M | G44: DD | H44: Marc | I44: Régis | J44: Jean | K44: 76683 | L44: 76724 | M44: 41 | N44: 05:00:00 | O44: 09:50:00 | P44: 04:50:00 | Q44: 7.15 | U44: 7.15 | V44: 1 | W44: 7.15 | AA44: 6.3 | AB44: A
B45: janvier | C45: 2015-01-08 | D45: jeu | E45: 2 | G45: EE | H45: Marcel | I45: Alban | J45: Jules | K45: 67284 | L45: 67336 | M45: 52 | N45: 12:30:00 | O45: 15:30:00 | P45: 03:00:00 | U45: 0 | V45: 0 | AA45: 6.3
B46: janvier | C46: 2015-01-09 | D46: ven | E46: 2 | F46: O.M | G46: FF | H46: Paul | I46: Simon | J46: Morad | K46: 76095 | L46: 76132 | M46: 37 | N46: 05:00:00 | O46: 10:05:00 | P46: 05:05:00 | Q46: 5 | R46: 5.35 | U46: 10.35 | V46: 2 | W46: 5.175 | AA46: 3.1 | AB46: AB
B47: janvier | C47: 2015-01-09 | D47: ven | E47: 2 | F47: O.M | G47: GG | H47: Sian | I47: Sylvain | J47: Philippe | K47: 57195 | L47: 57241 | M47: 46 | N47: 05:00:00 | O47: 10:10:00 | P47: 05:10:00 | Q47: 6.4 | R47: 1.35 | U47: 7.75 | V47: 2 | W47: 3.875 | AA47: 6 | AB47: A
B48: janvier | C48: 2015-01-09 | D48: ven | E48: 2 | F48: Encombrants | G48: HH | H48: Loic | I48: Marek | J48: Bernard | K48: 67336 | L48: 67361 | M48: 25 | N48: 06:00:00 | O48: 08:50:00 | P48: 02:50:00 | Q48: 1.3 | U48: 1.3 | V48: 1 | W48: 1.3 | AA48: 6
B49: janvier | C49: 2015-01-09 | D49: ven | E49: 2 | F49: Marchés | G49: II | H49: Marc | I49: Régis | J49: Jean | K49: 73649 | L49: 73672 | M49: 23 | N49: 08:50:00 | O49: 10:30:00 | P49: 01:40:00 | Q49: 0.31 | U49: 0.31 | V49: 1 | W49: 0.31 | AA49: 6.84
B50: janvier | C50: 2015-01-09 | D50: ven | E50: 2 | F50: O.M | G50: JJ | H50: Marcel | I50: Alban | J50: Jules | K50: 70680 | L50: 70720 | M50: 40 | N50: 05:00:00 | O50: 10:00:00 | P50: 05:00:00 | Q50: 5.95 | U50: 5.95 | V50: 1 | W50: 5.95 | AA50: 6
B51: janvier | C51: 2015-01-09 | D51: ven | E51: 2 | F51: O.M | G51: KK | H51: Paul | I51: Simon | J51: Morad | K51: 22157 | L51: 22216 | M51: 59 | N51: 05:00:00 | O51: 09:55:00 | P51: 04:55:00 | Q51: 6.52 | R51: 2.28 | U51: 8.8 | V51: 2 | W51: 4.4 | AA51: 6.8
B52: janvier | C52: 2015-01-09 | D52: ven | E52: 2 | F52: O.M | G52: LL | H52: Sian | I52: Sylvain | J52: Philippe | K52: 27049 | L52: 27087 | M52: 38 | N52: 05:00:00 | O52: 09:55:00 | P52: 04:55:00 | Q52: 6.1 | R52: 3.6 | U52: 9.7 | V52: 2 | W52: 4.85 | AA52: 6.6
B53: janvier | C53: 2015-01-09 | D53: ven | E53: 2 | G53: MM | H53: Loic | I53: Marek | J53: Bernard | K53: 67361 | L53: 67456 | M53: 95 | N53: 09:00:00 | O53: 13:15:00 | P53: 04:15:00 | U53: 0 | V53: 0 | AA53: 6.2
B54: janvier | C54: 2015-01-12 | D54: lun | E54: 3 | F54: O.M | G54: AA | H54: Marc | I54: Régis | J54: Jean | K54: 37286 | L54: 37336 | M54: 50 | N54: 05:00:00 | O54: 10:15:00 | P54: 05:15:00 | Q54: 4.95 | R54: 3.9 | U54: 8.85 | V54: 2 | W54: 4.425 | AA54: 6.9
B55: janvier | C55: 2015-01-12 | D55: lun | E55: 3 | F55: O.M | G55: BB | H55: Marcel | I55: Alban | J55: Jules | K55: 57241 | L55: 57277 | M55: 36 | N55: 05:00:00 | O55: 10:15:00 | P55: 05:15:00 | Q55: 6.4 | R55: 5.35 | U55: 11.75 | V55: 2 | W55: 5.875 | AA55: 7.1
B56: janvier | C56: 2015-01-12 | D56: lun | E56: 3 | F56: O.M | G56: CC | H56: Paul | I56: Simon | J56: Morad | K56: 31784 | L56: 31847 | M56: 63 | N56: 05:00:00 | O56: 10:40:00 | P56: 05:40:00 | Q56: 5.5 | R56: 1.05 | U56: 6.55 | V56: 2 | W56: 3.275 | AA56: 7.1
B57: janvier | C57: 2015-01-12 | D57: lun | E57: 3 | F57: O.M | G57: DD | H57: Sian | I57: Sylvain | J57: Philippe | K57: 70720 | L57: 70758 | M57: 38 | N57: 05:00:00 | O57: 10:00:00 | P57: 05:00:00 | Q57: 7 | U57: 7 | V57: 1 | W57: 7 | AA57: 6.3 | AB57: A
B58: janvier | C58: 2015-01-12 | D58: lun | E58: 3 | F58: O.M | G58: EE | H58: Loic | I58: Marek | J58: Bernard | K58: 22216 | L58: 22268 | M58: 52 | N58: 05:00:00 | O58: 10:00:00 | P58: 05:00:00 | Q58: 6.4 | R58: 5.82 | U58: 12.22 | V58: 2 | W58: 6.11 | AA58: 6.3 | AB58: A
B59: janvier | C59: 2015-01-12 | D59: lun | E59: 3 | F59: O.M | G59: FF | H59: Marc | I59: Régis | J59: Jean | K59: 27087 | L59: 27148 | M59: 61 | N59: 05:00:00 | O59: 10:15:00 | P59: 05:15:00 | Q59: 5.8 | R59: 4.35 | U59: 10.15 | V59: 2 | W59: 5.075 | AA59: 3.1 | AB59: AB
B60: janvier | C60: 2015-01-13 | D60: mar | E60: 3 | F60: O.M | G60: GG | H60: Marcel | I60: Alban | J60: Jules | K60: 37336 | L60: 37374 | M60: 38 | N60: 05:00:00 | O60: 09:45:00 | P60: 04:45:00 | Q60: 7 | R60: 6.1 | U60: 13.1 | V60: 2 | W60: 6.55 | AA60: 6 | AB60: AB
B61: janvier | C61: 2015-01-13 | D61: mar | E61: 3 | F61: O.M | G61: HH | H61: Paul | I61: Simon | J61: Morad | K61: 57277 | L61: 57316 | M61: 39 | N61: 05:00:00 | O61: 10:15:00 | P61: 05:15:00 | Q61: 6.4 | R61: 4.25 | U61: 10.65 | V61: 2 | W61: 5.325 | AA61: 6 | AB61: A
B62: janvier | C62: 2015-01-13 | D62: mar | E62: 3 | F62: Multimatériaux | G62: II | H62: Sian | I62: Sylvain | J62: Philippe | K62: 31847 | L62: 31887 | M62: 40 | N62: 05:00:00 | O62: 09:45:00 | P62: 04:45:00 | Q62: 3.28 | U62: 3.28 | V62: 1 | W62: 3.28 | AA62: 6.84
B63: janvier | C63: 2015-01-13 | D63: mar | E63: 3 | F63: Marchés | G63: JJ | H63: Loic | I63: Marek | J63: Bernard | K63: 73675 | L63: 73684 | M63: 9 | N63: 12:00:00 | O63: 14:00:00 | P63: 02:00:00 | Q63: 0.8 | U63: 0.8 | V63: 1 | W63: 0.8 | AA63: 6
B64: janvier | C64: 2015-01-13 | D64: mar | E64: 3 | F64: O.M | G64: KK | H64: Marc | I64: Régis | J64: Jean | K64: 70758 | L64: 70807 | M64: 49 | N64: 05:00:00 | O64: 09:45:00 | P64: 04:45:00 | Q64: 5.8 | R64: 1.9 | U64: 7.7 | V64: 2 | W64: 3.85 | AA64: 6.8
B65: janvier | C65: 2015-01-13 | D65: mar | E65: 3 | F65: O.M | G65: LL | H65: Marcel | I65: Alban | J65: Jules | K65: 22268 | L65: 22327 | M65: 59 | N65: 05:00:00 | O65: 10:00:00 | P65: 05:00:00 | Q65: 6.46 | R65: 4.46 | U65: 10.92 | V65: 2 | W65: 5.46 | AA65: 6.6
B66: janvier | C66: 2015-01-13 | D66: mar | E66: 3 | F66: O.M | G66: MM | H66: Paul | I66: Simon | J66: Morad | K66: 27148 | L66: 27203 | M66: 55 | N66: 05:00:00 | O66: 09:45:00 | P66: 04:45:00 | Q66: 5.8 | R66: 1.3 | U66: 7.1 | V66: 2 | W66: 3.55 | AA66: =IFERROR(VLOOKUP(G66,charg,2,0),"") -> 6.2
B67: janvier | C67: 2015-01-13 | D67: mar | E67: 3 | F67: Multimatériaux | G67: AA | H67: Sian | I67: Sylvain | J67: Philippe | K67: 76724 | L67: 76779 | M67: =L67-K67 -> 55 | N67: 05:00:00 | O67: 10:00:00 | P67: =(O67-N67) -> 05:00:00 | Q67: 3.62 | U67: =SUM(Q67:T67) -> 3.62 | V67: =COUNTA(Q67:T67) -> 1 | W67: =IF(V67=0,"",U67/V67) -> 3.62 | AA67: 6.9 | AB67: =IF($Q67>$AA67,"A","")&IF($R67>$AA67,"B","")&IF($S67>$AA67,"C","")&IF($T67>$AA67,"D","") -> 
B68: janvier | C68: 2015-01-14 | D68: =IF(C68="","",LEFT(TEXT(C68,"jjjjjj"),3)) -> mer | E68: 3 | F68: Multimatériaux | G68: BB | H68: Loic | I68: Marek | J68: Bernard | K68: 76132 | L68: 76174 | M68: 42 | N68: 05:00:00 | O68: 11:20:00 | P68: 06:20:00 | Q68: 5.36 | R68: 1.3 | U68: 6.66 | V68: 2 | W68: 3.33 | AA68: 7.1
B69: janvier | C69: 2015-01-14 | D69: mer | E69: 3 | F69: Multimatériaux | G69: CC | H69: Marc | I69: Régis | J69: Jean | K69: 57316 | L69: 57365 | M69: 49 | N69: 05:00:00 | O69: 10:30:00 | P69: 05:30:00 | Q69: 4.32 | U69: 4.32 | V69: 1 | W69: 4.32 | AA69: 7.1
B70: janvier | C70: 2015-01-14 | D70: mer | E70: 3 | F70: Cartons | G70: DD | H70: Marcel | I70: Alban | J70: Jules | K70: 31887 | L70: 31932 | M70: 45 | N70: 05:00:00 | O70: 08:55:00 | P70: 03:55:00 | Q70: 2.7 | U70: 2.7 | V70: 1 | W70: 2.7 | AA70: 6.3
B71: janvier | C71: 2015-01-14 | D71: mer | E71: 3 | F71: O.M | G71: EE | H71: Paul | I71: Simon | J71: Morad | K71: 31887 | L71: 31932 | M71: 45 | N71: 08:55:00 | O71: 10:25:00 | P71: 01:30:00 | Q71: 1.4 | U71: 1.4 | V71: 1 | W71: 1.4 | AA71: 6.3
B72: janvier | C72: 2015-01-14 | D72: mer | E72: 3 | F72: Multimatériaux | G72: FF | H72: Sian | I72: Sylvain | J72: Philippe | K72: 70807 | L72: 70841 | M72: 34 | N72: 05:00:00 | O72: 10:40:00 | P72: 05:40:00 | Q72: 4.52 | R72: 2.14 | U72: 6.66 | V72: 2 | W72: 3.33 | AA72: 3.1 | AB72: A
B73: janvier | C73: 2015-01-14 | D73: mer | E73: 3 | F73: Multimatériaux | G73: GG | H73: Loic | I73: Marek | J73: Bernard | K73: 22327 | L73: 22393 | M73: 66 | N73: 05:00:00 | O73: 11:20:00 | P73: 06:20:00 | Q73: 3.32 | R73: 2.16 | U73: 5.48 | V73: 2 | W73: 2.74 | AA73: 6
B74: janvier | C74: 2015-01-14 | D74: mer | E74: 3 | F74: Marchés | G74: HH | H74: Marc | I74: Régis | J74: Jean | K74: 73684 | L74: 73709 | M74: 25 | N74: 12:00:00 | O74: 14:00:00 | P74: 02:00:00 | Q74: 0.5 | U74: 0.5 | V74: 1 | W74: 0.5 | AA74: 6
B75: janvier | C75: 2015-01-14 | D75: mer | E75: 3 | F75: Multimatériaux | G75: II | H75: Marcel | I75: Alban | J75: Jules | K75: 27203 | L75: 27238 | M75: 35 | N75: 05:00:00 | O75: 09:50:00 | P75: 04:50:00 | Q75: 3.83 | R75: 1.27 | U75: 5.1 | V75: 2 | W75: 2.55 | AA75: 6.84
B76: janvier | C76: 2015-01-15 | D76: jeu | E76: 3 | F76: O.M | G76: JJ | H76: Paul | I76: Simon | J76: Morad | K76: 37374 | L76: 37414 | M76: 40 | N76: 05:00:00 | O76: 09:05:00 | P76: 04:05:00 | Q76: 5.45 | U76: 5.45 | V76: 1 | W76: 5.45 | AA76: 6
B77: janvier | C77: 2015-01-15 | D77: jeu | E77: 3 | F77: O.M | G77: KK | H77: Sian | I77: Sylvain | J77: Philippe | K77: 57365 | L77: 57400 | M77: 35 | N77: 05:00:00 | O77: 10:35:00 | P77: 05:35:00 | Q77: 5.9 | R77: 2.75 | U77: 8.65 | V77: 2 | W77: 4.325 | AA77: 6.8
B78: janvier | C78: 2015-01-15 | D78: jeu | E78: 3 | F78: O.M | G78: LL | H78: Loic | I78: Marek | J78: Bernard | K78: 31932 | L78: 31995 | M78: 63 | N78: 05:00:00 | O78: 09:30:00 | P78: 04:30:00 | Q78: 3.25 | U78: 3.25 | V78: 1 | W78: 3.25 | AA78: 6.6
B79: janvier | C79: 2015-01-15 | D79: jeu | E79: 3 | F79: Marchés | G79: MM | H79: Marc | I79: Régis | J79: Jean | K79: 73709 | L79: 73719 | M79: 10 | N79: 12:00:00 | O79: 14:00:00 | P79: 02:00:00 | Q79: 0.3 | U79: 0.3 | V79: 1 | W79: 0.3 | AA79: 6.2
B80: janvier | C80: 2015-01-15 | D80: jeu | E80: 3 | F80: O.M | G80: AA | H80: Marcel | I80: Alban | J80: Jules | K80: 70841 | L80: 70881 | M80: 40 | N80: 05:00:00 | O80: 09:50:00 | P80: 04:50:00 | Q80: 3.85 | U80: 3.85 | V80: 1 | W80: 3.85 | AA80: 6.9
B81: janvier | C81: 2015-01-15 | D81: jeu | E81: 3 | F81: O.M | G81: BB | H81: Paul | I81: Simon | J81: Morad | K81: 22393 | L81: 22446 | M81: 53 | N81: 05:00:00 | O81: 09:20:00 | P81: 04:20:00 | Q81: 5.8 | R81: 1.74 | U81: 7.54 | V81: 2 | W81: 3.77 | AA81: 7.1
B82: janvier | C82: 2015-01-15 | D82: jeu | E82: 3 | F82: Multimatériaux | G82: CC | H82: Sian | I82: Sylvain | J82: Philippe | K82: 27238 | L82: 27281 | M82: 43 | N82: 05:00:00 | O82: 10:00:00 | P82: 05:00:00 | Q82: 3.54 | R82: 1.54 | U82: 5.08 | V82: 2 | W82: 2.54 | AA82: 7.1
B83: janvier | C83: 2015-01-15 | D83: jeu | E83: 3 | F83: O.M | G83: DD | H83: Loic | I83: Marek | J83: Bernard | K83: 76779 | L83: 76827 | M83: 48 | N83: 05:00:00 | O83: 09:40:00 | P83: 04:40:00 | Q83: 6.65 | U83: 6.65 | V83: 1 | W83: 6.65 | AA83: 6.3 | AB83: A
B84: janvier | C84: 2015-01-16 | D84: ven | E84: 3 | F84: O.M | G84: EE | H84: Marc | I84: Régis | J84: Jean | K84: 37414 | L84: 37454 | M84: 40 | N84: 05:00:00 | O84: 09:45:00 | P84: 04:45:00 | Q84: 4.95 | R84: 4.6 | U84: 9.55 | V84: 2 | W84: 4.775 | AA84: 6.3
B85: janvier | C85: 2015-01-16 | D85: ven | E85: 3 | F85: O.M | G85: FF | H85: Marcel | I85: Alban | J85: Jules | K85: 57400 | L85: 57439 | M85: 39 | N85: 05:00:00 | O85: 10:15:00 | P85: 05:15:00 | Q85: 5.6 | R85: 2.3 | U85: 7.9 | V85: 2 | W85: 3.95 | AA85: 3.1 | AB85: A
B86: janvier | C86: 2015-01-16 | D86: ven | E86: 3 | F86: Encombrants | G86: GG | H86: Paul | I86: Simon | J86: Morad | K86: 67467 | L86: 67509 | M86: 42 | N86: 06:30:00 | O86: 09:15:00 | P86: 02:45:00 | Q86: 1.25 | R86: 0.7 | U86: 1.95 | V86: 2 | W86: 0.975 | AA86: 6
B87: janvier | C87: 2015-01-16 | D87: ven | E87: 3 | F87: Marchés | G87: HH | H87: Sian | I87: Sylvain | J87: Philippe | K87: 73719 | L87: 73731 | M87: 12 | N87: 09:30:00 | O87: 10:15:00 | P87: 00:45:00 | Q87: 1.5 | U87: 1.5 | V87: 1 | W87: 1.5 | AA87: 6
B88: janvier | C88: 2015-01-16 | D88: ven | E88: 3 | F88: O.M | G88: II | H88: Loic | I88: Marek | J88: Bernard | K88: 76174 | L88: 76214 | M88: 40 | N88: 05:00:00 | O88: 09:45:00 | P88: 04:45:00 | Q88: 5.5 | U88: 5.5 | V88: 1 | W88: 5.5 | AA88: 6.84
B89: janvier | C89: 2015-01-16 | D89: ven | E89: 3 | F89: O.M | G89: JJ | H89: Marc | I89: Régis | J89: Jean | K89: 22446 | L89: 22506 | M89: 60 | N89: 05:00:00 | O89: 10:00:00 | P89: 05:00:00 | Q89: 5.18 | R89: 2.12 | U89: 7.3 | V89: 2 | W89: 3.65 | AA89: 6
B90: janvier | C90: 2015-01-16 | D90: ven | E90: 3 | F90: O.M | G90: KK | H90: Marcel | I90: Alban | J90: Jules | K90: 27281 | L90: 27315 | M90: 34 | N90: 05:00:00 | O90: 10:15:00 | P90: 05:15:00 | Q90: 6.3 | R90: 2.3 | U90: 8.6 | V90: 2 | W90: 4.3 | Y90: bom en réparation après la collecte | AA90: 6.8
B91: janvier | C91: 2015-01-19 | D91: lun | E91: 4 | F91: O.M | G91: LL | H91: Paul | I91: Simon | J91: Morad | K91: 37454 | L91: 37517 | M91: 63 | N91: 05:00:00 | O91: 11:10:00 | P91: 06:10:00 | Q91: 6.05 | R91: 3.45 | U91: 9.5 | V91: 2 | W91: 4.75 | AA91: 6.6
B92: janvier | C92: 2015-01-19 | D92: lun | E92: 4 | F92: O.M | G92: MM | H92: Sian | I92: Sylvain | J92: Philippe | K92: 57439 | L92: 57487 | M92: 48 | N92: 05:00:00 | O92: 09:50:00 | P92: 04:50:00 | Q92: 6.85 | R92: 5.25 | U92: 12.1 | V92: 2 | W92: 6.05 | AA92: 6.2 | AB92: A
B93: janvier | C93: 2015-01-19 | D93: lun | E93: 4 | F93: O.M | G93: AA | H93: Loic | I93: Marek | J93: Bernard | K93: 31995 | L93: 32072 | M93: 77 | N93: 05:00:00 | O93: 10:40:00 | P93: 05:40:00 | Q93: 5.5 | R93: 0.9 | U93: 6.4 | V93: 2 | W93: 3.2 | AA93: 6.9
B94: janvier | C94: 2015-01-19 | D94: lun | E94: 4 | F94: O.M | G94: BB | H94: Marc | I94: Régis | J94: Jean | K94: 76214 | L94: 76252 | M94: 38 | N94: 05:00:00 | O94: 09:50:00 | P94: 04:50:00 | Q94: 7.1 | U94: 7.1 | V94: 1 | W94: 7.1 | AA94: 7.1
B95: janvier | C95: 2015-01-19 | D95: lun | E95: 4 | F95: O.M | G95: CC | H95: Marcel | I95: Alban | J95: Jules | K95: 22506 | L95: 22556 | M95: 50 | N95: 05:00:00 | O95: 09:45:00 | P95: 04:45:00 | Q95: 6.88 | R95: 5.94 | U95: 12.82 | V95: 2 | W95: 6.41 | AA95: 7.1
B96: janvier | C96: 2015-01-19 | D96: lun | E96: 4 | F96: O.M | G96: DD | H96: Paul | I96: Simon | J96: Morad | K96: 27315 | L96: 27390 | M96: 75 | N96: 05:00:00 | O96: 10:20:00 | P96: 05:20:00 | Q96: 6.15 | R96: 3.7 | U96: 9.85 | V96: 2 | W96: 4.925 | AA96: 6.3
B97: janvier | C97: 2015-01-19 | D97: lun | E97: 4 | G97: EE | H97: Sian | I97: Sylvain | J97: Philippe | K97: 67509 | L97: 67571 | M97: 62 | N97: 07:45:00 | O97: 10:15:00 | P97: 02:30:00 | U97: 0 | V97: 0 | AA97: 6.3
B98: janvier | C98: 2015-01-20 | D98: mar | E98: 4 | F98: O.M | G98: FF | H98: Loic | I98: Marek | J98: Bernard | K98: 37517 | L98: 37557 | M98: 40 | N98: 05:00:00 | O98: 10:00:00 | P98: 05:00:00 | Q98: 6 | R98: 7.1 | U98: 13.1 | V98: 2 | W98: 6.55 | AA98: 3.1 | AB98: AB
B99: janvier | C99: 2015-01-20 | D99: mar | E99: 4 | F99: O.M | G99: GG | H99: Marc | I99: Régis | J99: Jean | K99: 57487 | L99: 57535 | M99: 48 | N99: 05:00:00 | O99: 10:15:00 | P99: 05:15:00 | Q99: 6.35 | R99: 4.36 | U99: 10.71 | V99: 2 | W99: 5.355 | AA99: 6 | AB99: A
B100: janvier | C100: 2015-01-20 | D100: mar | E100: 4 | F100: Multimatériaux | G100: HH | H100: Marcel | I100: Alban | J100: Jules | K100: 32072 | L100: 32115 | M100: 43 | N100: 05:00:00 | O100: 09:30:00 | P100: 04:30:00 | Q100: 2.37 | U100: 2.37 | V100: 1 | W100: 2.37 | AA100: 6
B101: janvier | C101: 2015-01-20 | D101: mar | E101: 4 | F101: Marchés | G101: II | H101: Paul | I101: Simon | J101: Morad | K101: 73731 | L101: 73739 | M101: 8 | N101: 12:00:00 | O101: 14:00:00 | P101: 02:00:00 | Q101: 0.56 | U101: 0.56 | V101: 1 | W101: 0.56 | AA101: 6.84
B102: janvier | C102: 2015-01-20 | D102: mar | E102: 4 | F102: O.M | G102: JJ | H102: Sian | I102: Sylvain | J102: Philippe | K102: 76252 | L102: 76301 | M102: 49 | N102: 05:00:00 | O102: 10:00:00 | P102: 05:00:00 | Q102: 5.3 | R102: 1.95 | U102: 7.25 | V102: 2 | W102: 3.625 | AA102: 6
B103: janvier | C103: 2015-01-20 | D103: mar | E103: 4 | F103: O.M | G103: KK | H103: Loic | I103: Marek | J103: Bernard | K103: 22556 | L103: 22615 | M103: 59 | N103: 05:00:00 | O103: 10:00:00 | P103: 05:00:00 | Q103: 5.52 | R103: 3.98 | U103: 9.5 | V103: 2 | W103: 4.75 | AA103: 6.8
B104: janvier | C104: 2015-01-20 | D104: mar | E104: 4 | F104: O.M | G104: LL | H104: Marc | I104: Régis | J104: Jean | K104: 27390 | L104: 27439 | M104: 49 | N104: 05:00:00 | O104: 09:45:00 | P104: 04:45:00 | Q104: 6.45 | U104: 6.45 | V104: 1 | W104: 6.45 | AA104: 6.6
B105: janvier | C105: 2015-01-21 | D105: mer | E105: 4 | F105: Multimatériaux | G105: MM | H105: Marcel | I105: Alban | J105: Jules | K105: 37557 | L105: 37595 | M105: 38 | N105: 05:00:00 | O105: 10:30:00 | P105: 05:30:00 | Q105: 4.68 | R105: 1.84 | U105: 6.52 | V105: 2 | W105: 3.26 | AA105: 6.2
B106: janvier | C106: 2015-01-21 | D106: mer | E106: 4 | F106: Multimatériaux | G106: AA | H106: Paul | I106: Simon | J106: Morad | K106: 76824 | L106: 76868 | M106: 44 | N106: 05:00:00 | O106: 10:50:00 | P106: 05:50:00 | Q106: 3.78 | U106: 3.78 | V106: 1 | W106: 3.78 | AA106: 6.9
B107: janvier | C107: 2015-01-21 | D107: mer | E107: 4 | F107: Cartons | G107: BB | H107: Sian | I107: Sylvain | J107: Philippe | K107: 32115 | L107: 32145 | M107: 30 | N107: 05:00:00 | O107: 08:40:00 | P107: 03:40:00 | Q107: 2.71 | U107: 2.71 | V107: 1 | W107: 2.71 | AA107: 7.1
B108: janvier | C108: 2015-01-21 | D108: mer | E108: 4 | F108: O.M | G108: CC | H108: Loic | I108: Marek | J108: Bernard | K108: 32145 | L108: 32163 | M108: 18 | N108: 08:40:00 | O108: 10:25:00 | P108: 01:45:00 | Q108: 1.45 | U108: 1.45 | V108: 1 | W108: 1.45 | AA108: 7.1
B109: janvier | C109: 2015-01-21 | D109: mer | E109: 4 | F109: Multimatériaux | G109: DD | H109: Marc | I109: Régis | J109: Jean | K109: 22615 | L109: 22682 | M109: 67 | N109: 05:00:00 | O109: 11:30:00 | P109: 06:30:00 | Q109: 4.18 | R109: 1.24 | U109: 5.42 | V109: 2 | W109: 2.71 | AA109: 6.3
B110: janvier | C110: 2015-01-21 | D110: mer | E110: 4 | F110: Marchés | G110: EE | H110: Marcel | I110: Alban | J110: Jules | K110: 73739 | L110: 73766 | M110: 27 | N110: 12:00:00 | O110: 14:00:00 | P110: 02:00:00 | Q110: 0.4 | U110: 0.4 | V110: 1 | W110: 0.4 | AA110: 6.3
B111: janvier | C111: 2015-01-21 | D111: mer | E111: 4 | F111: Multimatériaux | G111: FF | H111: Paul | I111: Simon | J111: Morad | K111: 27439 | L111: 27470 | M111: 31 | N111: 05:00:00 | O111: 09:45:00 | P111: 04:45:00 | Q111: 4.16 | U111: 4.16 | V111: 1 | W111: 4.16 | AA111: 3.1 | AB111: A
B112: janvier | C112: 2015-01-22 | D112: jeu | E112: 4 | F112: O.M | G112: GG | H112: Sian | I112: Sylvain | J112: Philippe | K112: 37595 | L112: 37629 | M112: 34 | N112: 05:00:00 | O112: 09:15:00 | P112: 04:15:00 | Q112: 4 | U112: 4 | V112: 1 | W112: 4 | AA112: 6
B113: janvier | C113: 2015-01-22 | D113: jeu | E113: 4 | F113: O.M | G113: HH | H113: Loic | I113: Marek | J113: Bernard | K113: 57535 | L113: 57573 | M113: 38 | N113: 05:00:00 | O113: 09:30:00 | P113: 04:30:00 | Q113: 5.7 | R113: 1.85 | U113: 7.55 | V113: 2 | W113: 3.775 | AA113: 6
B114: janvier | C114: 2015-01-22 | D114: jeu | E114: 4 | F114: O.M | G114: II | H114: Marc | I114: Régis | J114: Jean | K114: 32163 | L114: 32207 | M114: 44 | N114: 05:00:00 | O114: 09:00:00 | P114: 04:00:00 | Q114: 1.6 | U114: 1.6 | V114: 1 | W114: 1.6 | AA114: 6.84
B115: janvier | C115: 2015-01-22 | D115: jeu | E115: 4 | F115: Marchés | G115: JJ | H115: Marcel | I115: Alban | J115: Jules | K115: 73766 | L115: 73774 | M115: 8 | N115: 12:00:00 | O115: 14:00:00 | P115: 02:00:00 | Q115: 0.6 | U115: 0.6 | V115: 1 | W115: 0.6 | AA115: 6
B116: janvier | C116: 2015-01-22 | D116: jeu | E116: 4 | F116: O.M | G116: KK | H116: Paul | I116: Simon | J116: Morad | K116: 70889 | L116: 70929 | M116: 40 | N116: 05:00:00 | O116: 09:45:00 | P116: 04:45:00 | Q116: 3.2 | U116: 3.2 | V116: 1 | W116: 3.2 | AA116: 6.8
B117: janvier | C117: 2015-01-22 | D117: jeu | E117: 4 | F117: O.M | G117: LL | H117: Sian | I117: Sylvain | J117: Philippe | K117: 22682 | L117: 22728 | M117: 46 | N117: 05:00:00 | O117: 09:00:00 | P117: 04:00:00 | Q117: 6.78 | U117: 6.78 | V117: 1 | W117: 6.78 | AA117: 6.6 | AB117: A
B118: janvier | C118: 2015-01-22 | D118: jeu | E118: 4 | F118: Multimatériaux | G118: MM | H118: Loic | I118: Marek | J118: Bernard | K118: 27470 | L118: 27517 | M118: 47 | N118: 05:00:00 | O118: 09:45:00 | P118: 04:45:00 | Q118: 3.21 | U118: 3.21 | V118: 1 | W118: 3.21 | AA118: 6.2
B119: janvier | C119: 2015-01-22 | D119: jeu | E119: 4 | F119: O.M | G119: AA | H119: Marc | I119: Régis | J119: Jean | K119: 76868 | L119: 76908 | M119: 40 | N119: 05:00:00 | O119: 10:00:00 | P119: 05:00:00 | Q119: 4.8 | U119: 4.8 | V119: 1 | W119: 4.8 | AA119: 6.9
B120: janvier | C120: 2015-01-23 | D120: ven | E120: 4 | F120: O.M | G120: BB | H120: Marcel | I120: Alban | J120: Jules | K120: 76314 | L120: 76352 | M120: 38 | N120: 05:00:00 | O120: 10:00:00 | P120: 05:00:00 | Q120: 5.95 | R120: 3.75 | U120: 9.7 | V120: 2 | W120: 4.85 | AA120: 7.1
B121: janvier | C121: 2015-01-23 | D121: ven | E121: 4 | F121: O.M | G121: CC | H121: Paul | I121: Simon | J121: Morad | K121: 57573 | L121: 57610 | M121: 37 | N121: 05:00:00 | O121: 09:30:00 | P121: 04:30:00 | Q121: 6.35 | U121: 6.35 | V121: 1 | W121: 6.35 | AA121: 7.1
B122: janvier | C122: 2015-01-23 | D122: ven | E122: 4 | F122: O.M | G122: DD | H122: Sian | I122: Sylvain | J122: Philippe | K122: 73774 | L122: 73780 | M122: 6 | N122: 05:30:00 | O122: 06:15:00 | P122: 00:45:00 | Q122: 0.75 | U122: 0.75 | V122: 1 | W122: 0.75 | AA122: 6.3
B123: janvier | C123: 2015-01-23 | D123: ven | E123: 4 | F123: Encombrants | G123: EE | H123: Loic | I123: Marek | J123: Bernard | K123: 67572 | L123: 67609 | M123: 37 | N123: 06:30:00 | O123: 09:00:00 | P123: 02:30:00 | Q123: 1 | R123: 0.6 | U123: 1.6 | V123: 2 | W123: 0.8 | AA123: 6.3
B124: janvier | C124: 2015-01-23 | D124: ven | E124: 4 | F124: Marchés | G124: FF | H124: Marc | I124: Régis | J124: Jean | K124: 73780 | L124: 73807 | M124: 27 | N124: 09:15:00 | O124: 10:10:00 | P124: 00:55:00 | Q124: 1.1 | U124: 1.1 | V124: 1 | W124: 1.1 | AA124: 3.1
B125: janvier | C125: 2015-01-23 | D125: ven | E125: 4 | F125: O.M | G125: GG | H125: Marcel | I125: Alban | J125: Jules | K125: 70929 | L125: 70967 | M125: 38 | N125: 05:00:00 | O125: 09:45:00 | P125: 04:45:00 | Q125: 5 | U125: 5 | V125: 1 | W125: 5 | AA125: 6
B126: janvier | C126: 2015-01-23 | D126: ven | E126: 4 | F126: O.M | G126: HH | H126: Paul | I126: Simon | J126: Morad | K126: 22728 | L126: 22780 | M126: 52 | N126: 05:00:00 | O126: 09:40:00 | P126: 04:40:00 | Q126: 6.58 | U126: 6.58 | V126: 1 | W126: 6.58 | AA126: 6 | AB126: A
B127: janvier | C127: 2015-01-23 | D127: ven | E127: 4 | F127: O.M | G127: II | H127: Sian | I127: Sylvain | J127: Philippe | K127: 27517 | L127: 27553 | M127: 36 | N127: 05:00:00 | O127: 09:45:00 | P127: 04:45:00 | Q127: 6.15 | R127: 1.6 | U127: 7.75 | V127: 2 | W127: 3.875 | AA127: 6.84
B128: janvier | C128: 2015-01-26 | D128: lun | E128: 5 | F128: O.M | G128: JJ | H128: Loic | I128: Marek | J128: Bernard | K128: 37629 | L128: 37637 | M128: 8 | N128: 05:00:00 | O128: 05:45:00 | P128: 00:45:00 | U128: 0 | V128: 0 | AA128: 6
B129: janvier | C129: 2015-01-26 | D129: lun | E129: 5 | F129: O.M | G129: KK | H129: Marc | I129: Régis | J129: Jean | K129: 76352 | L129: 76395 | M129: 43 | N129: 05:45:00 | O129: 10:50:00 | P129: 05:05:00 | Q129: 5.7 | R129: 3.65 | U129: 9.35 | V129: 2 | W129: 4.675 | AA129: 6.8
B130: janvier | C130: 2015-01-26 | D130: lun | E130: 5 | F130: O.M | G130: LL | H130: Marcel | I130: Alban | J130: Jules | K130: 57610 | L130: 57655 | M130: 45 | N130: 05:00:00 | O130: 09:35:00 | P130: 04:35:00 | Q130: 6.95 | R130: 5.1 | U130: 12.05 | V130: 2 | W130: 6.025 | AA130: =IFERROR(VLOOKUP(G130,charg,2,0),"") -> 6.6 | AB130: A
B131: janvier | C131: 2015-01-26 | D131: lun | E131: 5 | F131: O.M | G131: MM | H131: Paul | I131: Simon | J131: Morad | K131: 32207 | L131: 32268 | M131: 61 | N131: 05:00:00 | O131: 11:10:00 | P131: 06:10:00 | Q131: 5.5 | R131: 1.8 | U131: =SUM(Q131:T131) -> 7.3 | V131: =COUNTA(Q131:T131) -> 2 | W131: =IF(V131=0,"",U131/V131) -> 3.65 | AA131: 6.2 | AB131: =IF($Q131>$AA131,"A","")&IF($R131>$AA131,"B","")&IF($S131>$AA131,"C","")&IF($T131>$AA131,"D","") -> 
B132: janvier | C132: 2015-01-26 | D132: =IF(C132="","",LEFT(TEXT(C132,"jjjjjj"),3)) -> lun | E132: 5 | F132: O.M | G132: AA | H132: Sian | I132: Sylvain | J132: Philippe | K132: 70967 | L132: 71006 | M132: 39 | N132: 05:00:00 | O132: 10:00:00 | P132: 05:00:00 | Q132: 7.1 | U132: 7.1 | V132: 1 | W132: 7.1 | AA132: 6.9 | AB132: A
B133: janvier | C133: 2015-01-26 | D133: lun | E133: 5 | F133: O.M | G133: BB | H133: Loic | I133: Marek | J133: Bernard | K133: 22780 | L133: 22832 | M133: =L133-K133 -> 52 | N133: 05:00:00 | O133: 10:05:00 | P133: =(O133-N133) -> 05:05:00 | Q133: 7.04 | R133: 5.86 | U133: 12.9 | V133: 2 | W133: 6.45 | AA133: 7.1
B134: janvier | C134: 2015-01-26 | D134: lun | E134: 5 | F134: O.M | G134: CC | H134: Marc | I134: Régis | J134: Jean | K134: 27553 | L134: 27613 | M134: 60 | N134: 05:00:00 | O134: 10:30:00 | P134: 05:30:00 | Q134: 5.75 | R134: 3.85 | U134: 9.6 | V134: 2 | W134: 4.8 | AA134: 7.1
B135: janvier | C135: 2015-01-27 | D135: mar | E135: 5 | F135: O.M | G135: DD | H135: Marcel | I135: Alban | J135: Jules | K135: 76395 | L135: 76432 | M135: 37 | N135: 05:00:00 | O135: 09:45:00 | P135: 04:45:00 | Q135: 6.05 | R135: 6.25 | U135: 12.3 | V135: 2 | W135: 6.15 | AA135: 6.3
B136: janvier | C136: 2015-01-27 | D136: mar | E136: 5 | F136: O.M | G136: EE | H136: Paul | I136: Simon | J136: Morad | K136: 57655 | L136: 57689 | M136: 34 | N136: 05:00:00 | O136: 09:15:00 | P136: 04:15:00 | Q136: 6.45 | R136: 3.9 | U136: 10.35 | V136: 2 | W136: 5.175 | AA136: 6.3 | AB136: A
B137: janvier | C137: 2015-01-27 | D137: mar | E137: 5 | F137: Multimatériaux | G137: FF | H137: Sian | I137: Sylvain | J137: Philippe | K137: 32268 | L137: 32308 | M137: 40 | N137: 05:00:00 | O137: 10:30:00 | P137: 05:30:00 | Q137: 1.16 | U137: 1.16 | V137: 1 | W137: 1.16 | AA137: 3.1
B138: janvier | C138: 2015-01-27 | D138: mar | E138: 5 | F138: Marchés | G138: GG | H138: Loic | I138: Marek | J138: Bernard | K138: 73807 | L138: 73820 | M138: 13 | N138: 12:00:00 | O138: 14:00:00 | P138: 02:00:00 | Q138: 0.45 | U138: 0.45 | V138: 1 | W138: 0.45 | AA138: 6
B139: janvier | C139: 2015-01-27 | D139: mar | E139: 5 | F139: O.M | G139: HH | H139: Marc | I139: Régis | J139: Jean | K139: 71006 | L139: 71052 | M139: 46 | N139: 05:00:00 | O139: 09:45:00 | P139: 04:45:00 | Q139: 6.2 | R139: 2.05 | U139: 8.25 | V139: 2 | W139: 4.125 | AA139: 6 | AB139: A
B140: janvier | C140: 2015-01-27 | D140: mar | E140: 5 | F140: O.M | G140: II | H140: Marcel | I140: Alban | J140: Jules | K140: 22832 | L140: 22892 | M140: 60 | N140: 05:00:00 | O140: 09:45:00 | P140: 04:45:00 | Q140: 5.46 | R140: 4.12 | U140: 9.58 | V140: 2 | W140: 4.79 | AA140: 6.84
B141: janvier | C141: 2015-01-27 | D141: mar | E141: 5 | F141: Multimatériaux | G141: JJ | H141: Paul | I141: Simon | J141: Morad | K141: 79213 | L141: 79273 | M141: 60 | N141: 05:00:00 | O141: 10:00:00 | P141: 05:00:00 | Q141: 3.36 | U141: 3.36 | V141: 1 | W141: 3.36 | AA141: 6
B142: janvier | C142: 2015-01-27 | D142: mar | E142: 5 | F142: O.M | G142: KK | H142: Sian | I142: Sylvain | J142: Philippe | K142: 27613 | L142: 27663 | M142: 50 | N142: 05:00:00 | O142: 09:30:00 | P142: 04:30:00 | Q142: 6.9 | U142: 6.9 | V142: 1 | W142: 6.9 | AA142: 6.8 | AB142: A
B143: janvier | C143: 2015-01-27 | D143: mar | E143: 5 | G143: LL | H143: Loic | I143: Marek | J143: Bernard | K143: 67610 | L143: 67655 | M143: 45 | N143: 10:30:00 | O143: 12:00:00 | P143: 01:30:00 | U143: 0 | V143: 0 | AA143: 6.6
B144: janvier | C144: 2015-01-28 | D144: mer | E144: 5 | F144: Multimatériaux | G144: MM | H144: Marc | I144: Régis | J144: Jean | K144: 76432 | L144: 76468 | M144: 36 | N144: 05:00:00 | O144: 10:00:00 | P144: 05:00:00 | Q144: 4.8 | U144: 4.8 | V144: 1 | W144: 4.8 | AA144: 6.2
B145: janvier | C145: 2015-01-28 | D145: mer | E145: 5 | F145: Multimatériaux | G145: AA | H145: Marcel | I145: Alban | J145: Jules | K145: 57689 | L145: 57731 | M145: 42 | N145: 05:00:00 | O145: 09:20:00 | P145: 04:20:00 | Q145: 3.92 | U145: 3.92 | V145: 1 | W145: 3.92 | AA145: 6.9
B146: janvier | C146: 2015-01-28 | D146: mer | E146: 5 | F146: Cartons | G146: BB | H146: Paul | I146: Simon | J146: Morad | K146: 32308 | L146: 32351 | M146: 43 | N146: 05:00:00 | O146: 08:35:00 | P146: 03:35:00 | Q146: 2.35 | U146: 2.35 | V146: 1 | W146: 2.35 | AA146: 7.1
B147: janvier | C147: 2015-01-28 | D147: mer | E147: 5 | F147: O.M | G147: CC | H147: Sian | I147: Sylvain | J147: Philippe | K147: 32308 | L147: 32351 | M147: 43 | N147: 08:35:00 | O147: 10:15:00 | P147: 01:40:00 | Q147: 1.2 | U147: 1.2 | V147: 1 | W147: 1.2 | AA147: 7.1
B148: janvier | C148: 2015-01-28 | D148: mer | E148: 5 | F148: Multimatériaux | G148: DD | H148: Loic | I148: Marek | J148: Bernard | K148: 71052 | L148: 71087 | M148: 35 | N148: 05:00:00 | O148: 10:30:00 | P148: 05:30:00 | Q148: 4 | R148: 0.86 | U148: 4.86 | V148: 2 | W148: 2.43 | AA148: 6.3
B149: janvier | C149: 2015-01-28 | D149: mer | E149: 5 | F149: Multimatériaux | G149: EE | H149: Marc | I149: Régis | J149: Jean | K149: 22892 | L149: 22960 | M149: 68 | N149: 05:00:00 | O149: 10:40:00 | P149: 05:40:00 | Q149: 3.84 | R149: 1.28 | U149: 5.12 | V149: 2 | W149: 2.56 | AA149: 6.3
B150: janvier | C150: 2015-01-28 | D150: mer | E150: 5 | F150: Marchés | G150: FF | H150: Marcel | I150: Alban | J150: Jules | K150: 73820 | L150: 73849 | M150: 29 | N150: 12:00:00 | O150: 14:00:00 | P150: 02:00:00 | Q150: 0.4 | U150: 0.4 | V150: 1 | W150: 0.4 | AA150: 3.1
B151: janvier | C151: 2015-01-28 | D151: mer | E151: 5 | F151: Multimatériaux | G151: GG | H151: Paul | I151: Simon | J151: Morad | K151: 27663 | L151: 27699 | M151: 36 | N151: 05:00:00 | O151: 09:55:00 | P151: 04:55:00 | Q151: 3.94 | R151: 0.73 | U151: 4.67 | V151: 2 | W151: 2.335 | AA151: 6
B152: janvier | C152: 2015-01-28 | D152: mer | G152: HH | H152: Sian | I152: Sylvain | J152: Philippe | K152: 67655 | L152: 67717 | M152: 62 | N152: 09:15:00 | O152: 14:45:00 | P152: 05:30:00 | U152: 0 | V152: 0 | AA152: 6
B153: janvier | C153: 2015-01-29 | D153: jeu | E153: 5 | F153: O.M | G153: II | H153: Loic | I153: Marek | J153: Bernard | K153: 76468 | L153: 76512 | M153: 44 | N153: 05:00:00 | O153: 09:15:00 | P153: 04:15:00 | Q153: 6.2 | U153: 6.2 | V153: 1 | W153: 6.2 | AA153: 6.84
B154: janvier | C154: 2015-01-29 | D154: jeu | E154: 5 | F154: O.M | G154: JJ | H154: Marc | I154: Régis | J154: Jean | K154: 57731 | L154: 57777 | M154: 46 | N154: 05:00:00 | O154: 10:30:00 | P154: 05:30:00 | Q154: 6.1 | R154: 2.6 | U154: 8.7 | V154: 2 | W154: 4.35 | AA154: 6 | AB154: A
B155: janvier | C155: 2015-01-29 | D155: jeu | E155: 5 | F155: O.M | G155: KK | H155: Marcel | I155: Alban | J155: Jules | K155: 32351 | L155: 32411 | M155: 60 | N155: 05:00:00 | O155: 10:30:00 | P155: 05:30:00 | Q155: 4 | U155: 4 | V155: 1 | W155: 4 | AA155: 6.8
B156: janvier | C156: 2015-01-29 | D156: jeu | E156: 5 | F156: Marchés | G156: LL | H156: Paul | I156: Simon | J156: Morad | K156: 73849 | L156: 73857 | M156: 8 | N156: 12:00:00 | O156: 14:00:00 | P156: 02:00:00 | Q156: 0.6 | U156: 0.6 | V156: 1 | W156: 0.6 | AA156: 6.6
B157: janvier | C157: 2015-01-29 | D157: jeu | E157: 5 | F157: O.M | G157: MM | H157: Sian | I157: Sylvain | J157: Philippe | K157: 71087 | L157: 71127 | M157: 40 | N157: 05:00:00 | O157: 09:15:00 | P157: 04:15:00 | Q157: 3.45 | U157: 3.45 | V157: 1 | W157: 3.45 | AA157: 6.2
B158: janvier | C158: 2015-01-29 | D158: jeu | E158: 5 | F158: O.M | G158: AA | H158: Loic | I158: Marek | J158: Bernard | K158: 22960 | L158: 23015 | M158: 55 | N158: 05:00:00 | O158: 09:15:00 | P158: 04:15:00 | Q158: 7.26 | R158: 0.9 | U158: 8.16 | V158: 2 | W158: 4.08 | AA158: 6.9 | AB158: A
B159: janvier | C159: 2015-01-29 | D159: jeu | E159: 5 | F159: Multimatériaux | G159: BB | H159: Marc | I159: Régis | J159: Jean | K159: 27699 | L159: 27738 | M159: 39 | N159: 05:00:00 | O159: 09:30:00 | P159: 04:30:00 | Q159: 4.47 | U159: 4.47 | V159: 1 | W159: 4.47 | AA159: 7.1
B160: janvier | C160: 2015-01-29 | D160: jeu | E160: 5 | F160: O.M | G160: CC | H160: Marcel | I160: Alban | J160: Jules | K160: 79273 | L160: 79314 | M160: 41 | N160: 05:00:00 | O160: 10:45:00 | P160: 05:45:00 | Q160: 6.45 | U160: 6.45 | V160: 1 | W160: 6.45 | AA160: 7.1
B161: janvier | C161: 2015-01-29 | D161: jeu | E161: 5 | G161: DD | H161: Paul | I161: Simon | J161: Morad | K161: 67717 | L161: 67814 | M161: 97 | N161: 07:45:00 | O161: 11:00:00 | P161: 03:15:00 | U161: 0 | V161: 0 | AA161: 6.3
B162: janvier | C162: 2015-01-30 | D162: ven | E162: 5 | F162: O.M | G162: EE | H162: Sian | I162: Sylvain | J162: Philippe | K162: 76512 | L162: 76545 | M162: 33 | N162: 05:00:00 | O162: 10:05:00 | P162: 05:05:00 | Q162: 5.8 | R162: 3.85 | U162: 9.65 | V162: 2 | W162: 4.825 | AA162: 6.3
B163: janvier | C163: 2015-01-30 | D163: ven | E163: 5 | F163: O.M | G163: FF | H163: Loic | I163: Marek | J163: Bernard | K163: 57777 | L163: 57812 | M163: 35 | N163: 05:00:00 | O163: 09:05:00 | P163: 04:05:00 | Q163: 7.04 | U163: 7.04 | V163: 1 | W163: 7.04 | AA163: 3.1 | AB163: A
B164: janvier | C164: 2015-01-30 | D164: ven | E164: 5 | F164: Encombrants | G164: GG | H164: Marc | I164: Régis | J164: Jean | K164: 67814 | L164: 67836 | M164: 22 | N164: 06:30:00 | O164: 08:00:00 | P164: 01:30:00 | Q164: 0.35 | U164: 0.35 | V164: 1 | W164: 0.35 | AA164: 6
B165: janvier | C165: 2015-01-30 | D165: ven | E165: 5 | F165: Marchés | G165: HH | H165: Marcel | I165: Alban | J165: Jules | K165: 73857 | L165: 73860 | M165: 3 | N165: 08:00:00 | O165: 09:00:00 | P165: 01:00:00 | Q165: 0.7 | U165: 0.7 | V165: 1 | W165: 0.7 | AA165: 6
B166: janvier | C166: 2015-01-30 | D166: ven | E166: 5 | F166: O.M | G166: II | H166: Paul | I166: Simon | J166: Morad | K166: 73860 | L166: 73875 | M166: 15 | N166: 08:00:00 | O166: 09:00:00 | P166: 01:00:00 | Q166: 1 | U166: 1 | V166: 1 | W166: 1 | AA166: 6.84
B167: janvier | C167: 2015-01-30 | D167: ven | E167: 5 | F167: O.M | G167: JJ | H167: Sian | I167: Sylvain | J167: Philippe | K167: 71127 | L167: 71171 | M167: 44 | N167: 05:00:00 | O167: 10:20:00 | P167: 05:20:00 | Q167: 5.78 | U167: 5.78 | V167: 1 | W167: 5.78 | AA167: 6
B168: janvier | C168: 2015-01-30 | D168: ven | E168: 5 | F168: O.M | G168: KK | H168: Loic | I168: Marek | J168: Bernard | K168: 23015 | L168: 23069 | M168: 54 | N168: 05:00:00 | O168: 10:00:00 | P168: 05:00:00 | Q168: 6.54 | R168: 0.83 | U168: 7.37 | V168: 2 | W168: 3.685 | AA168: 6.8
B169: janvier | C169: 2015-01-30 | D169: ven | E169: 5 | F169: O.M | G169: LL | H169: Marc | I169: Régis | J169: Jean | K169: 27738 | L169: 27776 | M169: 38 | N169: 05:00:00 | O169: 09:45:00 | P169: 04:45:00 | Q169: 6.45 | R169: 1.55 | U169: 8 | V169: 2 | W169: 4 | AA169: 6.6
B170: février | C170: 2015-02-02 | D170: lun | E170: 6 | F170: O.M | G170: MM | H170: Marcel | I170: Alban | J170: Jules | K170: 76545 | L170: 76587 | M170: 42 | N170: 05:00:00 | O170: 10:00:00 | P170: 05:00:00 | Q170: 5.6 | R170: 3.05 | U170: 8.65 | V170: 2 | W170: 4.325 | AA170: 6.2
B171: février | C171: 2015-02-02 | D171: lun | E171: 6 | F171: O.M | G171: AA | H171: Paul | I171: Simon | J171: Morad | K171: 57812 | L171: 57850 | M171: 38 | N171: 05:00:00 | O171: 09:45:00 | P171: 04:45:00 | Q171: 6.6 | R171: 4.65 | U171: 11.25 | V171: 2 | W171: 5.625 | AA171: 6.9
B172: février | C172: 2015-02-02 | D172: lun | E172: 6 | F172: O.M | G172: BB | H172: Sian | I172: Sylvain | J172: Philippe | K172: 32411 | L172: 32472 | M172: 61 | N172: 05:00:00 | O172: 10:30:00 | P172: 05:30:00 | Q172: 4.55 | R172: 1.4 | U172: 5.95 | V172: 2 | W172: 2.975 | AA172: 7.1
B173: février | C173: 2015-02-02 | D173: lun | E173: 6 | F173: O.M | G173: CC | H173: Loic | I173: Marek | J173: Bernard | K173: 71171 | L173: 71206 | M173: 35 | N173: 05:00:00 | O173: 09:45:00 | P173: 04:45:00 | Q173: 6.55 | U173: 6.55 | V173: 1 | W173: 6.55 | AA173: 7.1
B174: février | C174: 2015-02-02 | D174: lun | E174: 6 | F174: O.M | G174: DD | H174: Marc | I174: Régis | J174: Jean | K174: 23069 | L174: 23122 | M174: 53 | N174: 05:00:00 | O174: 09:45:00 | P174: 04:45:00 | Q174: 6.96 | R174: 5.32 | U174: 12.28 | V174: 2 | W174: 6.14 | AA174: 6.3 | AB174: A
B175: février | C175: 2015-02-02 | D175: lun | E175: 6 | F175: O.M | G175: EE | H175: Marcel | I175: Alban | J175: Jules | K175: 27776 | L175: 27837 | M175: 61 | N175: 05:00:00 | O175: 09:45:00 | P175: 04:45:00 | Q175: 5.25 | R175: 4.2 | U175: 9.45 | V175: 2 | W175: 4.725 | AA175: 6.3
B176: février | C176: 2015-02-02 | D176: lun | E176: 6 | G176: FF | H176: Paul | I176: Simon | J176: Morad | K176: 67836 | L176: 67891 | M176: 55 | N176: 13:00:00 | O176: 15:30:00 | P176: 02:30:00 | U176: 0 | V176: 0 | AA176: 3.1
B177: février | C177: 2015-02-03 | D177: mar | E177: 6 | F177: O.M | G177: GG | H177: Sian | I177: Sylvain | J177: Philippe | K177: 76587 | L177: 76620 | M177: 33 | N177: 05:00:00 | O177: 10:30:00 | P177: 05:30:00 | Q177: 6.45 | R177: 6.6 | U177: 13.05 | V177: 2 | W177: 6.525 | AA177: 6 | AB177: AB
B178: février | C178: 2015-02-03 | D178: mar | E178: 6 | F178: O.M | G178: HH | H178: Loic | I178: Marek | J178: Bernard | K178: 57850 | L178: 57886 | M178: 36 | N178: 05:00:00 | O178: 10:00:00 | P178: 05:00:00 | Q178: 7.05 | R178: 4.25 | U178: 11.3 | V178: 2 | W178: 5.65 | AA178: 6 | AB178: A
B179: février | C179: 2015-02-03 | D179: mar | E179: 6 | F179: Multimatériaux | G179: II | H179: Marc | I179: Régis | J179: Jean | K179: 32472 | L179: 32519 | M179: 47 | N179: 05:00:00 | O179: 09:45:00 | P179: 04:45:00 | Q179: 2.27 | U179: 2.27 | V179: 1 | W179: 2.27 | AA179: 6.84
B180: février | C180: 2015-02-03 | D180: mar | E180: 6 | F180: Marchés | G180: JJ | H180: Marcel | I180: Alban | J180: Jules | K180: 73890 | L180: 73906 | M180: 16 | N180: 12:00:00 | O180: 14:00:00 | P180: 02:00:00 | Q180: 0.42 | U180: 0.42 | V180: 1 | W180: 0.42 | AA180: 6
B181: février | C181: 2015-02-03 | D181: mar | E181: 6 | F181: O.M | G181: KK | H181: Paul | I181: Simon | J181: Morad | K181: 71206 | L181: 71251 | M181: 45 | N181: 05:00:00 | O181: 10:00:00 | P181: 05:00:00 | Q181: 5.25 | R181: 2.1 | U181: 7.35 | V181: 2 | W181: 3.675 | AA181: 6.8
B182: février | C182: 2015-02-03 | D182: mar | E182: 6 | F182: O.M | G182: LL | H182: Sian | I182: Sylvain | J182: Philippe | K182: 23122 | L182: 23185 | M182: 63 | N182: 05:00:00 | O182: 10:30:00 | P182: 05:30:00 | Q182: 6.22 | R182: 3.92 | U182: 10.14 | V182: 2 | W182: 5.07 | AA182: 6.6
B183: février | C183: 2015-02-03 | D183: mar | E183: 6 | F183: O.M | G183: MM | H183: Loic | I183: Marek | J183: Bernard | K183: 27837 | L183: 27887 | M183: 50 | N183: 05:00:00 | O183: 09:55:00 | P183: 04:55:00 | Q183: 6.5 | U183: 6.5 | V183: 1 | W183: 6.5 | AA183: 6.2 | AB183: A
B184: février | C184: 2015-02-03 | D184: mar | E184: 6 | G184: AA | H184: Marc | I184: Régis | J184: Jean | K184: 67892 | L184: 67968 | M184: 76 | N184: 10:30:00 | O184: 13:15:00 | P184: 02:45:00 | U184: 0 | V184: 0 | AA184: 6.9
B185: février | C185: 2015-02-04 | D185: mer | E185: 6 | F185: Multimatériaux | G185: BB | H185: Marcel | I185: Alban | J185: Jules | K185: 37647 | L185: 37679 | M185: 32 | N185: 05:00:00 | O185: 10:15:00 | P185: 05:15:00 | Q185: 5.64 | U185: 5.64 | V185: 1 | W185: 5.64 | AA185: 7.1
B186: février | C186: 2015-02-04 | D186: mer | E186: 6 | F186: Multimatériaux | G186: CC | H186: Paul | I186: Simon | J186: Morad | K186: 57886 | L186: 57923 | M186: 37 | N186: 05:00:00 | O186: 10:15:00 | P186: 05:15:00 | Q186: 3.32 | U186: 3.32 | V186: 1 | W186: 3.32 | AA186: 7.1
B187: février | C187: 2015-02-04 | D187: mer | E187: 6 | F187: Cartons | G187: DD | H187: Sian | I187: Sylvain | J187: Philippe | K187: 32519 | L187: 32540 | M187: 21 | N187: 05:00:00 | O187: 09:00:00 | P187: 04:00:00 | Q187: 1.95 | U187: 1.95 | V187: 1 | W187: 1.95 | AA187: 6.3
B188: février | C188: 2015-02-04 | D188: mer | E188: 6 | F188: O.M | G188: EE | H188: Loic | I188: Marek | J188: Bernard | K188: 32540 | L188: 32561 | M188: 21 | N188: 09:10:00 | O188: 10:15:00 | P188: 01:05:00 | Q188: 1.05 | U188: 1.05 | V188: 1 | W188: 1.05 | AA188: 6.3
B189: février | C189: 2015-02-04 | D189: mer | E189: 6 | F189: Multimatériaux | G189: FF | H189: Marc | I189: Régis | J189: Jean | K189: 76923 | L189: 76981 | M189: 58 | N189: 05:00:00 | O189: 10:45:00 | P189: 05:45:00 | Q189: 5.08 | U189: 5.08 | V189: 1 | W189: 5.08 | AA189: 3.1 | AB189: A
B190: février | C190: 2015-02-04 | D190: mer | E190: 6 | F190: Multimatériaux | G190: GG | H190: Marcel | I190: Alban | J190: Jules | K190: 71251 | L190: 71277 | M190: 26 | N190: 06:30:00 | O190: 10:00:00 | P190: 03:30:00 | Q190: 1.04 | U190: 1.04 | V190: 1 | W190: 1.04 | Y190: Renfort tournées sélectives (neige) | AA190: 6
B191: février | C191: 2015-02-04 | D191: mer | E191: 6 | F191: Marchés | G191: HH | H191: Paul | I191: Simon | J191: Morad | K191: 73906 | L191: 73926 | M191: 20 | N191: 12:00:00 | O191: 14:00:00 | P191: 02:00:00 | Q191: 0.38 | U191: 0.38 | V191: 1 | W191: 0.38 | AA191: 6
B192: février | C192: 2015-02-04 | D192: mer | E192: 6 | F192: Multimatériaux | G192: II | H192: Sian | I192: Sylvain | J192: Philippe | K192: 27887 | L192: 27925 | M192: 38 | N192: 05:00:00 | O192: 09:45:00 | P192: 04:45:00 | Q192: 4.27 | U192: 4.27 | V192: 1 | W192: 4.27 | AA192: 6.84
B193: février | C193: 2015-02-04 | D193: mer | E193: 6 | G193: JJ | H193: Loic | I193: Marek | J193: Bernard | K193: 67969 | L193: 68053 | M193: 84 | N193: 08:15:00 | O193: 10:45:00 | P193: 02:30:00 | U193: 0 | V193: 0 | AA193: 6
B194: février | C194: 2015-02-05 | D194: jeu | E194: 6 | F194: O.M | G194: KK | H194: Marc | I194: Régis | J194: Jean | K194: 37679 | L194: 37717 | M194: 38 | N194: 05:00:00 | O194: 09:05:00 | P194: 04:05:00 | Q194: 5.45 | U194: 5.45 | V194: 1 | W194: 5.45 | AA194: =IFERROR(VLOOKUP(G194,charg,2,0),"") -> 6.8
B195: février | C195: 2015-02-05 | D195: jeu | E195: 6 | F195: O.M | G195: LL | H195: Marcel | I195: Alban | J195: Jules | K195: 57923 | L195: 57967 | M195: 44 | N195: 05:00:00 | O195: 09:50:00 | P195: 04:50:00 | Q195: 4.75 | R195: 3.1 | U195: =SUM(Q195:T195) -> 7.85 | V195: =COUNTA(Q195:T195) -> 2 | W195: =IF(V195=0,"",U195/V195) -> 3.925 | AA195: 6.6 | AB195: =IF($Q195>$AA195,"A","")&IF($R195>$AA195,"B","")&IF($S195>$AA195,"C","")&IF($T195>$AA195,"D","") -> 
B196: février | C196: 2015-02-05 | D196: =IF(C196="","",LEFT(TEXT(C196,"jjjjjj"),3)) -> jeu | E196: 6 | F196: O.M | G196: MM | H196: Paul | I196: Simon | J196: Morad | K196: 32561 | L196: 32612 | M196: 51 | N196: 05:00:00 | O196: 09:05:00 | P196: 04:05:00 | Q196: 1.55 | U196: 1.55 | V196: 1 | W196: 1.55 | AA196: 6.2
B197: février | C197: 2015-02-05 | D197: jeu | E197: 6 | F197: Marchés | G197: AA | H197: Sian | I197: Sylvain | J197: Philippe | K197: 73926 | L197: 73935 | M197: 9 | N197: 12:00:00 | O197: 14:00:00 | P197: 02:00:00 | Q197: 0.2 | U197: 0.2 | V197: 1 | W197: 0.2 | AA197: 6.9
B198: février | C198: 2015-02-05 | D198: jeu | E198: 6 | F198: O.M | G198: BB | H198: Loic | I198: Marek | J198: Bernard | K198: 71277 | L198: 71316 | M198: 39 | N198: 05:00:00 | O198: 09:20:00 | P198: 04:20:00 | Q198: 3.45 | U198: 3.45 | V198: 1 | W198: 3.45 | AA198: 7.1
B199: février | C199: 2015-02-05 | D199: jeu | E199: 6 | F199: O.M | G199: CC | H199: Marc | I199: Régis | J199: Jean | K199: 76620 | L199: 76664 | M199: 44 | N199: 05:00:00 | O199: 08:50:00 | P199: 03:50:00 | Q199: 6.52 | U199: 6.52 | V199: 1 | W199: 6.52 | AA199: 7.1
B200: février | C200: 2015-02-05 | D200: jeu | E200: 6 | F200: Multimatériaux | G200: DD | H200: Marcel | I200: Alban | J200: Jules | K200: 27925 | L200: 27967 | M200: 42 | N200: 05:00:00 | O200: 09:50:00 | P200: 04:50:00 | Q200: 3.3 | U200: 3.3 | V200: 1 | W200: 3.3 | AA200: 6.3
... 2050 more rows

Sheet tableaux des surcharges
A1: ETAT DES SURCHARGES
A2: sélection période | B2: sélection | D2: Etat de la base de données
A3: Année | B3: 2015 | C3: prise en compte
A4: Mois | C4: =IF(B4="","",CHOOSE(B4,"janvier","février","mars","avril","mai","juin","juillet","août","septembre","octobre","novembre","décembre")) ->  | D4: 1° enregistrement de la liste | G4: =MIN(date) -> 2015-01-01
A5: date début | C5: =IF(B4<>"",DATE(B3,B4,1),IF(B5>0,B5,G4)) -> 2015-01-01 | D5: dernier enregistrement de la liste | G5: =MAX(date) -> 2015-10-12
A6: date fin | C6: =IF(B4>0,EOMONTH(C5,0),IF(B6>0,B6,G5)) -> 2015-10-12 | D6: nombre de trajets enregistrés | G6: =COUNTIF(date,">0") -> 1581
B8: Tonnage pour dépotage1 (t) | F8: Tonnage pour dépotage2 (t) | J8: Tonnage pour dépotage3 (t) | N8: Tonnage pour dépotage 4(t)
A9: conducteur | B9: nombre | C9: charge maxi autorisé | D9: charge réelle | E9: surcharge | F9: nombre | G9: charge maxi autorisé | H9: charge réelle | I9: surcharge | J9: nombre | K9: charge maxi autorisé | L9: charge réelle | M9: surcharge | N9: nombre | O9: charge maxi autorisé | P9: charge réelle | Q9: surcharge
A10: =CU!I3 -> Sian | B10: =COUNTIFS(date,">="&$C$5,date,"<="&$C$6,list_C,$A10,code,"*A*") -> 72 | C10: =SUMIFS(T_max,date,">="&$C$5,date,"<="&$C$6,list_C,$A10,code,"*A*") -> 394.48 | D10: =SUMIFS(T_1,date,">="&$C$5,date,"<="&$C$6,list_C,$A10,code,"*A*") -> 463.7 | E10: =D10-C10 -> 69.22 | F10: =COUNTIFS(date,">="&$C$5,date,"<="&$C$6,list_C,$A10,code,"*B*") -> 9 | G10: =SUMIFS(T_max,date,">="&$C$5,date,"<="&$C$6,list_C,$A10,code,"*B*") -> 46.7 | H10: =SUMIFS(T_2,date,">="&$C$5,date,"<="&$C$6,list_C,$A10,code,"*B*") -> 55.06 | I10: =H10-G10 -> 8.36 | J10: =COUNTIFS(date,">="&$C$5,date,"<="&$C$6,list_C,$A10,code,"*C*") -> 0 | K10: =SUMIFS(T_max,date,">="&$C$5,date,"<="&$C$6,list_C,$A10,code,"*C*") -> 0 | L10: =SUMIFS(T_3,date,">="&$C$5,date,"<="&$C$6,list_C,$A10,code,"*C*") -> 0 | M10: =L10-K10 -> 0 | N10: =COUNTIFS(date,">="&$C$5,date,"<="&$C$6,list_C,$A10,code,"*>D*") -> 0 | O10: =SUMIFS(T_max,date,">="&$C$5,date,"<="&$C$6,list_C,$A10,code,"*D*") -> 0 | P10: =SUMIFS(T_4,date,">="&$C$5,date,"<="&$C$6,list_C,$A10,code,"*D*") -> 0 | Q10: =P10-O10 -> 0
A11: =CU!I4 -> Loic | B11: =COUNTIFS(date,">="&$C$5,date,"<="&$C$6,list_C,$A11,code,"*A*") -> 94 | C11: =SUMIFS(T_max,date,">="&$C$5,date,"<="&$C$6,list_C,$A11,code,"*A*") -> 516.18 | D11: =SUMIFS(T_1,date,">="&$C$5,date,"<="&$C$6,list_C,$A11,code,"*A*") -> 663.92 | E11: =D11-C11 -> 147.74 | F11: =COUNTIFS(date,">="&$C$5,date,"<="&$C$6,list_C,$A11,code,"*B*") -> 7 | G11: =SUMIFS(T_max,date,">="&$C$5,date,"<="&$C$6,list_C,$A11,code,"*B*") -> 33.3 | H11: =SUMIFS(T_2,date,">="&$C$5,date,"<="&$C$6,list_C,$A11,code,"*B*") -> 41.7 | I11: =H11-G11 -> 8.4 | J11: =COUNTIFS(date,">="&$C$5,date,"<="&$C$6,list_C,$A11,code,"*C*") -> 0 | K11: =SUMIFS(T_max,date,">="&$C$5,date,"<="&$C$6,list_C,$A11,code,"*C*") -> 0 | L11: =SUMIFS(T_3,date,">="&$C$5,date,"<="&$C$6,list_C,$A11,code,"*C*") -> 0 | M11: =L11-K11 -> 0 | N11: =COUNTIFS(date,">="&$C$5,date,"<="&$C$6,list_C,$A11,code,"*>D*") -> 0 | O11: =SUMIFS(T_max,date,">="&$C$5,date,"<="&$C$6,list_C,$A11,code,"*D*") -> 0 | P11: =SUMIFS(T_4,date,">="&$C$5,date,"<="&$C$6,list_C,$A11,code,"*D*") -> 0 | Q11: =P11-O11 -> 0
A12: =CU!I5 -> Marc | B12: =COUNTIFS(date,">="&$C$5,date,"<="&$C$6,list_C,$A12,code,"*A*") -> 82 | C12: =SUMIFS(T_max,date,">="&$C$5,date,"<="&$C$6,list_C,$A12,code,"*A*") -> 457.84 | D12: =SUMIFS(T_1,date,">="&$C$5,date,"<="&$C$6,list_C,$A12,code,"*A*") -> 532.03 | E12: 74.19 | F12: =COUNTIFS(date,">="&$C$5,date,"<="&$C$6,list_C,$A12,code,"*B*") -> 13 | G12: =SUMIFS(T_max,date,">="&$C$5,date,"<="&$C$6,list_C,$A12,code,"*B*") -> 61.94 | H12: =SUMIFS(T_2,date,">="&$C$5,date,"<="&$C$6,list_C,$A12,code,"*B*") -> 76.1 | I12: 14.16 | J12: =COUNTIFS(date,">="&$C$5,date,"<="&$C$6,list_C,$A12,code,"*C*") -> 0 | K12: =SUMIFS(T_max,date,">="&$C$5,date,"<="&$C$6,list_C,$A12,code,"*C*") -> 0 | L12: =SUMIFS(T_3,date,">="&$C$5,date,"<="&$C$6,list_C,$A12,code,"*C*") -> 0 | M12: 0 | N12: =COUNTIFS(date,">="&$C$5,date,"<="&$C$6,list_C,$A12,code,"*>D*") -> 0 | O12: =SUMIFS(T_max,date,">="&$C$5,date,"<="&$C$6,list_C,$A12,code,"*D*") -> 0 | P12: =SUMIFS(T_4,date,">="&$C$5,date,"<="&$C$6,list_C,$A12,code,"*D*") -> 0 | Q12: 0
A13: =CU!I6 -> Marcel | B13: =COUNTIFS(date,">="&$C$5,date,"<="&$C$6,list_C,$A13,code,"*A*") -> 64 | C13: =SUMIFS(T_max,date,">="&$C$5,date,"<="&$C$6,list_C,$A13,code,"*A*") -> 347.62 | D13: =SUMIFS(T_1,date,">="&$C$5,date,"<="&$C$6,list_C,$A13,code,"*A*") -> 423.85 | E13: 76.23 | F13: =COUNTIFS(date,">="&$C$5,date,"<="&$C$6,list_C,$A13,code,"*B*") -> 12 | G13: =SUMIFS(T_max,date,">="&$C$5,date,"<="&$C$6,list_C,$A13,code,"*B*") -> 54.8 | H13: =SUMIFS(T_2,date,">="&$C$5,date,"<="&$C$6,list_C,$A13,code,"*B*") -> 66.39 | I13: 11.59 | J13: =COUNTIFS(date,">="&$C$5,date,"<="&$C$6,list_C,$A13,code,"*C*") -> 0 | K13: =SUMIFS(T_max,date,">="&$C$5,date,"<="&$C$6,list_C,$A13,code,"*C*") -> 0 | L13: =SUMIFS(T_3,date,">="&$C$5,date,"<="&$C$6,list_C,$A13,code,"*C*") -> 0 | M13: 0 | N13: =COUNTIFS(date,">="&$C$5,date,"<="&$C$6,list_C,$A13,code,"*>D*") -> 0 | O13: =SUMIFS(T_max,date,">="&$C$5,date,"<="&$C$6,list_C,$A13,code,"*D*") -> 0 | P13: =SUMIFS(T_4,date,">="&$C$5,date,"<="&$C$6,list_C,$A13,code,"*D*") -> 0 | Q13: 0
A14: =CU!I7 -> Paul | B14: =COUNTIFS(date,">="&$C$5,date,"<="&$C$6,list_C,$A14,code,"*A*") -> 66 | C14: =SUMIFS(T_max,date,">="&$C$5,date,"<="&$C$6,list_C,$A14,code,"*A*") -> 369.92 | D14: =SUMIFS(T_1,date,">="&$C$5,date,"<="&$C$6,list_C,$A14,code,"*A*") -> 431.67 | E14: 61.75 | F14: =COUNTIFS(date,">="&$C$5,date,"<="&$C$6,list_C,$A14,code,"*B*") -> 10 | G14: =SUMIFS(T_max,date,">="&$C$5,date,"<="&$C$6,list_C,$A14,code,"*B*") -> 46 | H14: =SUMIFS(T_2,date,">="&$C$5,date,"<="&$C$6,list_C,$A14,code,"*B*") -> 58.35 | I14: 12.35 | J14: =COUNTIFS(date,">="&$C$5,date,"<="&$C$6,list_C,$A14,code,"*C*") -> 0 | K14: =SUMIFS(T_max,date,">="&$C$5,date,"<="&$C$6,list_C,$A14,code,"*C*") -> 0 | L14: =SUMIFS(T_3,date,">="&$C$5,date,"<="&$C$6,list_C,$A14,code,"*C*") -> 0 | M14: 0 | N14: =COUNTIFS(date,">="&$C$5,date,"<="&$C$6,list_C,$A14,code,"*>D*") -> 0 | O14: =SUMIFS(T_max,date,">="&$C$5,date,"<="&$C$6,list_C,$A14,code,"*D*") -> 0 | P14: =SUMIFS(T_4,date,">="&$C$5,date,"<="&$C$6,list_C,$A14,code,"*D*") -> 0 | Q14: 0
A15: =CU!I8 -> 0 | B15: =COUNTIFS(list_C,$A15,code,"*A*") -> 0 | C15: =SUMIFS(T_max,list_C,$A15,code,"*A*") -> 0 | D15: =SUMIFS(T_1,list_C,$A15,code,"*A*") -> 0 | E15: =D15-C15 -> 0 | F15: =COUNTIFS(list_C,$A15,code,"*B*") -> 0 | G15: =SUMIFS(T_max,list_C,$A15,code,"*B*") -> 0 | H15: =SUMIFS(T_2,list_C,$A15,code,"*B*") -> 0 | I15: =H15-G15 -> 0 | J15: =COUNTIFS(list_C,$A15,code,"*C*") -> 0 | K15: =SUMIFS(T_max,list_C,$A15,code,"*C*") -> 0 | L15: =SUMIFS(T_3,list_C,$A15,code,"*C*") -> 0 | M15: =L15-K15 -> 0 | N15: =COUNTIFS(list_C,$A15,code,"*D*") -> 0 | O15: =SUMIFS(T_max,list_C,$A15,code,"*D*") -> 0 | P15: =SUMIFS(T_4,list_C,$A15,code,"*D*") -> 0 | Q15: =P15-O15 -> 0
A16: =CU!I9 -> 0 | B16: 0 | C16: 0 | D16: 0 | E16: 0 | F16: 0 | G16: 0 | H16: 0 | I16: 0 | J16: 0 | K16: 0 | L16: 0 | M16: 0 | N16: 0 | O16: 0 | P16: 0 | Q16: 0
A17: =CU!I10 -> 0 | B17: 0 | C17: 0 | D17: 0 | E17: 0 | F17: 0 | G17: 0 | H17: 0 | I17: 0 | J17: 0 | K17: 0 | L17: 0 | M17: 0 | N17: 0 | O17: 0 | P17: 0 | Q17: 0
A18: =CU!I11 -> 0 | B18: 0 | C18: 0 | D18: 0 | E18: 0 | F18: 0 | G18: 0 | H18: 0 | I18: 0 | J18: 0 | K18: 0 | L18: 0 | M18: 0 | N18: 0 | O18: 0 | P18: 0 | Q18: 0
A19: =CU!I12 -> 0 | B19: 0 | C19: 0 | D19: 0 | E19: 0 | F19: 0 | G19: 0 | H19: 0 | I19: 0 | J19: 0 | K19: 0 | L19: 0 | M19: 0 | N19: 0 | O19: 0 | P19: 0 | Q19: 0
A20: =CU!I13 -> 0 | B20: 0 | C20: 0 | D20: 0 | E20: 0 | F20: 0 | G20: 0 | H20: 0 | I20: 0 | J20: 0 | K20: 0 | L20: 0 | M20: 0 | N20: 0 | O20: 0 | P20: 0 | Q20: 0
A21: =CU!I14 -> 0 | B21: 0 | C21: 0 | D21: 0 | E21: 0 | F21: 0 | G21: 0 | H21: 0 | I21: 0 | J21: 0 | K21: 0 | L21: 0 | M21: 0 | N21: 0 | O21: 0 | P21: 0 | Q21: 0
A22: =CU!I15 -> 0 | B22: 0 | C22: 0 | D22: 0 | E22: 0 | F22: 0 | G22: 0 | H22: 0 | I22: 0 | J22: 0 | K22: 0 | L22: 0 | M22: 0 | N22: 0 | O22: 0 | P22: 0 | Q22: 0
A23: =CU!I16 -> 0 | B23: 0 | C23: 0 | D23: 0 | E23: 0 | F23: 0 | G23: 0 | H23: 0 | I23: 0 | J23: 0 | K23: 0 | L23: 0 | M23: 0 | N23: 0 | O23: 0 | P23: 0 | Q23: 0
A24: =CU!I17 -> 0 | B24: 0 | C24: 0 | D24: 0 | E24: 0 | F24: 0 | G24: 0 | H24: 0 | I24: 0 | J24: 0 | K24: 0 | L24: 0 | M24: 0 | N24: 0 | O24: 0 | P24: 0 | Q24: 0
A25: =CU!I18 -> 0 | B25: 0 | C25: 0 | D25: 0 | E25: 0 | F25: 0 | G25: 0 | H25: 0 | I25: 0 | J25: 0 | K25: 0 | L25: 0 | M25: 0 | N25: 0 | O25: 0 | P25: 0 | Q25: 0
A26: =CU!I19 -> 0 | B26: 0 | C26: 0 | D26: 0 | E26: 0 | F26: 0 | G26: 0 | H26: 0 | I26: 0 | J26: 0 | K26: 0 | L26: 0 | M26: 0 | N26: 0 | O26: 0 | P26: 0 | Q26: 0
A27: =CU!I20 -> 0 | B27: 0 | C27: 0 | D27: 0 | E27: 0 | F27: 0 | G27: 0 | H27: 0 | I27: 0 | J27: 0 | K27: 0 | L27: 0 | M27: 0 | N27: 0 | O27: 0 | P27: 0 | Q27: 0
A28: =CU!I21 -> 0 | B28: 0 | C28: 0 | D28: 0 | E28: 0 | F28: 0 | G28: 0 | H28: 0 | I28: 0 | J28: 0 | K28: 0 | L28: 0 | M28: 0 | N28: 0 | O28: 0 | P28: 0 | Q28: 0
A29: =CU!I22 -> 0 | B29: 0 | C29: 0 | D29: 0 | E29: 0 | F29: 0 | G29: 0 | H29: 0 | I29: 0 | J29: 0 | K29: 0 | L29: 0 | M29: 0 | N29: 0 | O29: 0 | P29: 0 | Q29: 0
A30: =CU!I23 -> 0 | B30: 0 | C30: 0 | D30: 0 | E30: 0 | F30: 0 | G30: 0 | H30: 0 | I30: 0 | J30: 0 | K30: 0 | L30: 0 | M30: 0 | N30: 0 | O30: 0 | P30: 0 | Q30: 0
A31: =CU!I24 -> 0 | B31: 0 | C31: 0 | D31: 0 | E31: 0 | F31: 0 | G31: 0 | H31: 0 | I31: 0 | J31: 0 | K31: 0 | L31: 0 | M31: 0 | N31: 0 | O31: 0 | P31: 0 | Q31: 0
A32: =CU!I25 -> 0 | B32: 0 | C32: 0 | D32: 0 | E32: 0 | F32: 0 | G32: 0 | H32: 0 | I32: 0 | J32: 0 | K32: 0 | L32: 0 | M32: 0 | N32: 0 | O32: 0 | P32: 0 | Q32: 0
A33: =CU!I26 -> 0 | B33: 0 | C33: 0 | D33: 0 | E33: 0 | F33: 0 | G33: 0 | H33: 0 | I33: 0 | J33: 0 | K33: 0 | L33: 0 | M33: 0 | N33: 0 | O33: 0 | P33: 0 | Q33: 0
A34: =CU!I27 -> 0 | B34: 0 | C34: 0 | D34: 0 | E34: 0 | F34: 0 | G34: 0 | H34: 0 | I34: 0 | J34: 0 | K34: 0 | L34: 0 | M34: 0 | N34: 0 | O34: 0 | P34: 0 | Q34: 0
A35: =CU!I28 -> 0 | B35: 0 | C35: 0 | D35: 0 | E35: 0 | F35: 0 | G35: 0 | H35: 0 | I35: 0 | J35: 0 | K35: 0 | L35: 0 | M35: 0 | N35: 0 | O35: 0 | P35: 0 | Q35: 0
A36: =CU!I29 -> 0 | B36: 0 | C36: 0 | D36: 0 | E36: 0 | F36: 0 | G36: 0 | H36: 0 | I36: 0 | J36: 0 | K36: 0 | L36: 0 | M36: 0 | N36: 0 | O36: 0 | P36: 0 | Q36: 0
A37: =CU!I30 -> 0 | B37: 0 | C37: 0 | D37: 0 | E37: 0 | F37: 0 | G37: 0 | H37: 0 | I37: 0 | J37: 0 | K37: 0 | L37: 0 | M37: 0 | N37: 0 | O37: 0 | P37: 0 | Q37: 0
A38: =CU!I31 -> 0 | B38: 0 | C38: 0 | D38: 0 | E38: 0 | F38: 0 | G38: 0 | H38: 0 | I38: 0 | J38: 0 | K38: 0 | L38: 0 | M38: 0 | N38: 0 | O38: 0 | P38: 0 | Q38: 0
A39: =CU!I32 -> 0 | B39: 0 | C39: 0 | D39: 0 | E39: 0 | F39: 0 | G39: 0 | H39: 0 | I39: 0 | J39: 0 | K39: 0 | L39: 0 | M39: 0 | N39: 0 | O39: 0 | P39: 0 | Q39: 0
A40: =CU!I33 -> 0 | B40: 0 | C40: 0 | D40: 0 | E40: 0 | F40: 0 | G40: 0 | H40: 0 | I40: 0 | J40: 0 | K40: 0 | L40: 0 | M40: 0 | N40: 0 | O40: 0 | P40: 0 | Q40: 0
A41: =CU!I34 -> 0 | B41: 0 | C41: 0 | D41: 0 | E41: 0 | F41: 0 | G41: 0 | H41: 0 | I41: 0 | J41: 0 | K41: 0 | L41: 0 | M41: 0 | N41: 0 | O41: 0 | P41: 0 | Q41: 0
A42: =CU!I35 -> 0 | B42: =COUNTIFS(list_C,$A42,code,"*A*") -> 0 | C42: =SUMIFS(T_max,list_C,$A42,code,"*A*") -> 0 | D42: =SUMIFS(T_1,list_C,$A42,code,"*A*") -> 0 | E42: 0 | F42: =COUNTIFS(list_C,$A42,code,"*B*") -> 0 | G42: =SUMIFS(T_max,list_C,$A42,code,"*B*") -> 0 | H42: =SUMIFS(T_2,list_C,$A42,code,"*B*") -> 0 | I42: 0 | J42: =COUNTIFS(list_C,$A42,code,"*C*") -> 0 | K42: =SUMIFS(T_max,list_C,$A42,code,"*C*") -> 0 | L42: =SUMIFS(T_3,list_C,$A42,code,"*C*") -> 0 | M42: 0 | N42: 0 | O42: =SUMIFS(T_max,list_C,$A42,code,"*D*") -> 0 | P42: =SUMIFS(T_4,list_C,$A42,code,"*D*") -> 0 | Q42: 0
A43: =CU!I36 -> 0 | B43: 0 | C43: 0 | D43: 0 | E43: 0 | F43: 0 | G43: 0 | H43: 0 | I43: 0 | J43: 0 | K43: 0 | L43: 0 | M43: 0 | N43: =COUNTIFS(list_C,$A43,code,"*D*") -> 0 | O43: 0 | P43: 0 | Q43: 0
A44: =CU!I37 -> 0 | B44: 0 | C44: 0 | D44: 0 | E44: 0 | F44: 0 | G44: 0 | H44: 0 | I44: 0 | J44: 0 | K44: 0 | L44: 0 | M44: 0 | N44: 0 | O44: 0 | P44: 0 | Q44: 0
A45: =CU!I38 -> 0 | B45: 0 | C45: 0 | D45: 0 | E45: 0 | F45: 0 | G45: 0 | H45: 0 | I45: 0 | J45: 0 | K45: 0 | L45: 0 | M45: 0 | N45: 0 | O45: 0 | P45: 0 | Q45: 0
A46: =CU!I39 -> 0 | B46: 0 | C46: 0 | D46: 0 | E46: 0 | F46: 0 | G46: 0 | H46: 0 | I46: 0 | J46: 0 | K46: 0 | L46: 0 | M46: 0 | N46: 0 | O46: 0 | P46: 0 | Q46: 0
A47: =CU!I40 -> 0 | B47: 0 | C47: 0 | D47: 0 | E47: 0 | F47: 0 | G47: 0 | H47: 0 | I47: 0 | J47: 0 | K47: 0 | L47: 0 | M47: 0 | N47: 0 | O47: 0 | P47: 0 | Q47: 0
A48: =CU!I41 -> 0 | B48: 0 | C48: 0 | D48: 0 | E48: 0 | F48: 0 | G48: 0 | H48: 0 | I48: 0 | J48: 0 | K48: 0 | L48: 0 | M48: 0 | N48: 0 | O48: 0 | P48: 0 | Q48: 0
A49: =CU!I42 -> 0 | B49: 0 | C49: 0 | D49: 0 | E49: 0 | F49: 0 | G49: 0 | H49: 0 | I49: 0 | J49: 0 | K49: 0 | L49: 0 | M49: 0 | N49: 0 | O49: 0 | P49: 0 | Q49: 0
A50: =CU!I43 -> 0 | B50: 0 | C50: 0 | D50: 0 | E50: 0 | F50: 0 | G50: 0 | H50: 0 | I50: 0 | J50: 0 | K50: 0 | L50: 0 | M50: 0 | N50: 0 | O50: 0 | P50: 0 | Q50: 0
A51: =CU!I44 -> 0 | B51: 0 | C51: 0 | D51: 0 | E51: 0 | F51: 0 | G51: 0 | H51: 0 | I51: 0 | J51: 0 | K51: 0 | L51: 0 | M51: 0 | N51: 0 | O51: 0 | P51: 0 | Q51: 0
A52: =CU!I45 -> 0 | B52: 0 | C52: 0 | D52: 0 | E52: 0 | F52: 0 | G52: 0 | H52: 0 | I52: 0 | J52: 0 | K52: 0 | L52: 0 | M52: 0 | N52: 0 | O52: 0 | P52: 0 | Q52: 0
A53: =CU!I46 -> 0 | B53: 0 | C53: 0 | D53: 0 | E53: 0 | F53: 0 | G53: 0 | H53: 0 | I53: 0 | J53: 0 | K53: 0 | L53: 0 | M53: 0 | N53: 0 | O53: 0 | P53: 0 | Q53: 0
A54: =CU!I47 -> 0 | B54: 0 | C54: 0 | D54: 0 | E54: 0 | F54: 0 | G54: 0 | H54: 0 | I54: 0 | J54: 0 | K54: 0 | L54: 0 | M54: 0 | N54: 0 | O54: 0 | P54: 0 | Q54: 0
A55: =CU!I48 -> 0 | B55: 0 | C55: 0 | D55: 0 | E55: 0 | F55: 0 | G55: 0 | H55: 0 | I55: 0 | J55: 0 | K55: 0 | L55: 0 | M55: 0 | N55: 0 | O55: 0 | P55: 0 | Q55: 0
A56: =CU!I49 -> 0 | B56: 0 | C56: 0 | D56: 0 | E56: 0 | F56: 0 | G56: 0 | H56: 0 | I56: 0 | J56: 0 | K56: 0 | L56: 0 | M56: 0 | N56: 0 | O56: 0 | P56: 0 | Q56: 0
A57: =CU!I50 -> 0 | B57: 0 | C57: 0 | D57: 0 | E57: 0 | F57: 0 | G57: 0 | H57: 0 | I57: 0 | J57: 0 | K57: 0 | L57: 0 | M57: 0 | N57: 0 | O57: 0 | P57: 0 | Q57: 0
A58: =CU!I51 -> 0 | B58: 0 | C58: 0 | D58: 0 | E58: 0 | F58: 0 | G58: 0 | H58: 0 | I58: 0 | J58: 0 | K58: 0 | L58: 0 | M58: 0 | N58: 0 | O58: 0 | P58: 0 | Q58: 0
A59: =CU!I52 -> 0 | B59: 0 | C59: 0 | D59: 0 | E59: 0 | F59: 0 | G59: 0 | H59: 0 | I59: 0 | J59: 0 | K59: 0 | L59: 0 | M59: 0 | N59: 0 | O59: 0 | P59: 0 | Q59: 0
A60: CUMULS | B60: =SUM(B10:B59) -> 378 | C60: =SUM(C10:C59) -> 2086.04 | D60: 2515.17 | E60: 429.13 | F60: 51 | G60: 242.74 | H60: 297.6 | I60: 54.86 | J60: 0 | K60: 0 | L60: 0 | M60: 0 | N60: 0 | O60: 0 | P60: 0 | Q60: 0
